Organisation Name,Organisation Code,Effective Date,Directorate,Service Category,Service Category URI,Supplier Name,Payment Date,Transaction Number,Net Amount,Irrecoverable VAT,Purpose_of_the_expenditure,Merchant Category,DELETE FIELD
Wyre Council,http://opendatacommunities.org/doc/district-council/wyre,30/07/2022,People and Places,Other Operating Inc. and Expen,136B,BWB Consulting Ltd,01/07/2022,PE142457,1000.00,0.00,"Letter of Reliance � Bourne Road, Thornton Cleveleys flood risk and drainage study",Adminstration expenses on disposal of as,47016
Wyre Council,http://opendatacommunities.org/doc/district-council/wyre,30/07/2022,People and Places,Planning and Development Servs,132C,National World Publishing Ltd,11/07/2022,PE142653,133.20,0.00,Public notice for Fleetwood Weekly News Wednesday 06.07.22,Advertising - Statutory Notices,46103
Wyre Council,http://opendatacommunities.org/doc/district-council/wyre,30/07/2022,People and Places,Planning and Development Servs,132C,National World Publishing Ltd,11/07/2022,PE142654,777.60,0.00,Public notice for Garstang Courier and Blackpool Gazette Wednesday 06.07.22,Advertising - Statutory Notices,46103
Wyre Council,http://opendatacommunities.org/doc/district-council/wyre,30/07/2022,People and Places,Cultural and Related Services,132A,Catering Elite Ltd,28/07/2022,PE143003,293.09,0.00,Agency staff - Marine Hall,Agency Staff,13000
Wyre Council,http://opendatacommunities.org/doc/district-council/wyre,30/07/2022,People and Places,Cultural and Related Services,132A,Catering Elite Ltd,28/07/2022,PE143002,103.88,0.00,Agency staff - Marine Hall,Agency Staff,13000
Wyre Council,http://opendatacommunities.org/doc/district-council/wyre,30/07/2022,People and Places,Cultural and Related Services,132A,Catering Elite Ltd,28/07/2022,PE143001,103.88,0.00,Agency staff - Marine Hall,Agency Staff,13000
Wyre Council,http://opendatacommunities.org/doc/district-council/wyre,30/07/2022,People and Places,Cultural and Related Services,132A,Catering Elite Ltd,28/07/2022,PE143000,267.12,0.00,Agency Staff Marine Hall,Agency Staff,13000
Wyre Council,http://opendatacommunities.org/doc/district-council/wyre,30/07/2022,People and Places,Cultural and Related Services,132A,Catering Elite Ltd,28/07/2022,PE142999,319.06,0.00,Agency staff Marine Hall,Agency Staff,13000
Wyre Council,http://opendatacommunities.org/doc/district-council/wyre,30/07/2022,People and Places,Cultural and Related Services,132A,Catering Elite Ltd,28/07/2022,PE142998,545.37,0.00,Agency Staff - Marine Hall,Agency Staff,13000
Wyre Council,http://opendatacommunities.org/doc/district-council/wyre,30/07/2022,People and Places,Cultural and Related Services,132A,Catering Elite Ltd,28/07/2022,PE142997,456.33,0.00,Marine Hall agency staff,Agency Staff,13000
Wyre Council,http://opendatacommunities.org/doc/district-council/wyre,30/07/2022,Resources,Support Services,135B,BUTLER ROSE,07/07/2022,RS141432,1909.05,0.00,Interim Accountant Support  (April 2022 - June 2022),Agency Staff,13000
Wyre Council,http://opendatacommunities.org/doc/district-council/wyre,30/07/2022,Resources,Support Services,135B,BUTLER ROSE,12/07/2022,RS142381,1909.05,0.00,Interim Accountant Support (April 2022 - June 2022),Agency Staff,13000
Wyre Council,http://opendatacommunities.org/doc/district-council/wyre,30/07/2022,Resources,Housing General Fund,134A,G2V Recruitment Group Ltd T/A G2 Recruitment Solu,13/07/2022,RS142599,1320.20,0.00,Agency wage for week ending 03/07/22,Agency Staff,13000
Wyre Council,http://opendatacommunities.org/doc/district-council/wyre,30/07/2022,Resources,Housing General Fund,134A,G2V Recruitment Group Ltd T/A G2 Recruitment Solu,04/07/2022,RS142500,2297.40,0.00,Agency wages x 2  weeks ending 22/05/22 & 29/05/22,Agency Staff,13000
Wyre Council,http://opendatacommunities.org/doc/district-council/wyre,30/07/2022,Resources,Housing General Fund,134A,G2V Recruitment Group Ltd T/A G2 Recruitment Solu,22/07/2022,RS142918,1320.55,0.00,Agency wage for week ending 08/07/22,Agency Staff,13000
Wyre Council,http://opendatacommunities.org/doc/district-council/wyre,30/07/2022,Resources,Housing General Fund,134A,G2V Recruitment Group Ltd T/A G2 Recruitment Solu,01/07/2022,RS142473,1136.10,0.00,Agency staff wage for week ending 19/06/22,Agency Staff,13000
Wyre Council,http://opendatacommunities.org/doc/district-council/wyre,30/07/2022,Resources,Housing General Fund,134A,Park Avenue Recruitment Ltd,27/07/2022,RS142988,1446.51,0.00,Agency wage for  week ending 24/07/22,Agency Staff,13000
Wyre Council,http://opendatacommunities.org/doc/district-council/wyre,30/07/2022,Resources,Housing General Fund,134A,Park Avenue Recruitment Ltd,26/07/2022,RS142971,1474.98,0.00,Agency wage for week ending 17/07/2022,Agency Staff,13000
Wyre Council,http://opendatacommunities.org/doc/district-council/wyre,30/07/2022,Resources,Housing General Fund,134A,Park Avenue Recruitment Ltd,22/07/2022,RS142919,2876.25,0.00,Agency wages x 2 weeks for period end 03/07/22 & 10/07/22,Agency Staff,13000
Wyre Council,http://opendatacommunities.org/doc/district-council/wyre,30/07/2022,Resources,Housing General Fund,134A,Park Avenue Recruitment Ltd,01/07/2022,RS142475,1413.75,0.00,Agency staff wage for week ending 26/06/22,Agency Staff,13000
Wyre Council,http://opendatacommunities.org/doc/district-council/wyre,30/07/2022,Resources,Housing General Fund,134A,Park Avenue Recruitment Ltd,01/07/2022,RS142474,1472.64,0.00,Agency staff wages for period ending 19/06/22,Agency Staff,13000
Wyre Council,http://opendatacommunities.org/doc/district-council/wyre,30/07/2022,People and Places,Planning and Development Servs,132C,Capita Property and Infrastructure Ltd,15/07/2022,PE142643,1854.00,0.00,Planning application support provide by Capita ,Agency Staff,13000
Wyre Council,http://opendatacommunities.org/doc/district-council/wyre,30/07/2022,People and Places,Planning and Development Servs,132C,M D Security,14/07/2022,PE142817,220.00,0.00,Monitoring fire alarms,Alarm Systems and Security - Annual,25201
Wyre Council,http://opendatacommunities.org/doc/district-council/wyre,30/07/2022,People and Places,Support Services,135B,M D Security,12/07/2022,PE142687,60.00,0.00,Carried out emergency test at Civic Centre,Alarm Systems and Security - Annual,25201
Wyre Council,http://opendatacommunities.org/doc/district-council/wyre,30/07/2022,People and Places,Support Services,135B,M D Security,12/07/2022,PE142688,60.00,0.00,Emergency light test at civic centre,Alarm Systems and Security - Annual,25201
Wyre Council,http://opendatacommunities.org/doc/district-council/wyre,30/07/2022,People and Places,Cultural and Related Services,132A,M D Security,12/07/2022,PE142639,130.50,0.00,Replaced PIR with DT PIR at Marine Hall,Alarm Systems and Security - Responsive,25203
Wyre Council,http://opendatacommunities.org/doc/district-council/wyre,30/07/2022,People and Places,Planning and Development Servs,132C,M D Security,12/07/2022,PE141722,233.00,0.00,Replaced zone monitor at Copse Road,Alarm Systems and Security - Responsive,25203
Wyre Council,http://opendatacommunities.org/doc/district-council/wyre,30/07/2022,People and Places,Cultural and Related Services,132A,M D Security,12/07/2022,PE142410,68.00,0.00,Replace emergency light at Cafe Cove,Alarm Systems and Security - Responsive,25203
Wyre Council,http://opendatacommunities.org/doc/district-council/wyre,30/07/2022,Resources,Planning and Development Servs,132C,Signs Express (Central Lancashire),20/07/2022,RS142891,1169.24,0.00,"Project Neptune Site SignageTo attend site in Fleetwood, create a safeworking environment and install the abovesignage in a safe and uniform manner. Priceinclusive of technical drawings, detailed risk andmethod statements and a fully accredited",Amenity and Information Signs,40400
Wyre Council,http://opendatacommunities.org/doc/district-council/wyre,30/07/2022,People and Places,Cultural and Related Services,132A,SONGSMITH RECORDS LTD,28/07/2022,PE143004,1000.00,0.00,Flat Cap x 3 performances - Marine Hall 14/8/22,Artistes' Fees,42604
Wyre Council,http://opendatacommunities.org/doc/district-council/wyre,30/07/2022,Resources,Corporate and Democratic Core,131A,PR Chauffeuring Services,11/07/2022,RS142662,1485.00,0.00,Invoice 154 June Chauffeuring Services,Attendant Chauffeur Service,44402
Wyre Council,http://opendatacommunities.org/doc/district-council/wyre,30/07/2022,Finance,Corporate and Democratic Core,131A,NATWEST BANK,04/07/2022,WPST00062001,1161.43,0.00,natwest bank charges,Bank Charges,46008
Wyre Council,http://opendatacommunities.org/doc/district-council/wyre,30/07/2022,Resources,Support Services,135B,Zurich Municipal,12/07/2022,RS142608,47262.24,0.00,Annual insurance renewal  Combined Policy - QLA 07H081-0083-00 Effective 30/6/22 to 29/6/23 Premium including IPT,Building Insurance Premiums General,29000
Wyre Council,http://opendatacommunities.org/doc/district-council/wyre,30/07/2022,Resources,Support Services,135B,Zurich Municipal,12/07/2022,RS142610,8090.82,0.00,Annual insurance renewaI Industrial Units - Policy no. F 07H081-0101 Premium including IPT,Building Insurance Premiums General,29000
Wyre Council,http://opendatacommunities.org/doc/district-council/wyre,30/07/2022,Resources,Planning and Development Servs,132C,NSL Services Group,13/07/2022,RS142709,123.92,0.00,NSL,Cash Collection Security Service,42504
Wyre Council,http://opendatacommunities.org/doc/district-council/wyre,30/07/2022,Resources,Cultural and Related Services,132A,NSL Services Group,13/07/2022,RS142709,61.94,0.00,NSL,Cash Collection Security Service,42504
Wyre Council,http://opendatacommunities.org/doc/district-council/wyre,30/07/2022,Resources,Parking Services,133F,NSL Services Group,13/07/2022,RS142709,1879.40,0.00,NSL,Cash Collection Security Service,42504
Wyre Council,http://opendatacommunities.org/doc/district-council/wyre,30/07/2022,Resources,Support Services,135B,NSL Services Group,13/07/2022,RS142709,123.92,0.00,NSL,Cash Collection Security Service,42504
Wyre Council,http://opendatacommunities.org/doc/district-council/wyre,30/07/2022,People and Places,Environmental Services,132B,Blackpool Council,19/07/2022,PE142879,1853.19,0.00,Ref 2011001Replace radio link @ Garstang - Serving between Camera 1 & 2.Parts Including  :- Radio Link (pair) Smart POE switch * 2 Cabling / Cat 5 Plugs / fixings etc. Labour inc Operatives @ Cherry Picker (working hours),CCTV Running Costs,46831
Wyre Council,http://opendatacommunities.org/doc/district-council/wyre,30/07/2022,People and Places,Environmental Services,132B,Blackpool Council,19/07/2022,PE142878,1360.26,0.00,CCTV Service Level Agreement 2020/21,CCTV Running Costs,46831
Wyre Council,http://opendatacommunities.org/doc/district-council/wyre,30/07/2022,People and Places,Environmental Services,132B,Blackpool Council,20/07/2022,PE142897,1592.39,0.00,Ref 2203003 - Budgetary costs Replace radio link @ Cleveleys between cam 1 & 2Parts Including  :- Radio Link (pair) Smart POE switch * 2 Cabling / Cat 5 Plugs / fixings etc. Labour inc Operatives @ Cherry Picker (working hoursDo not replace th,CCTV Running Costs,46831
Wyre Council,http://opendatacommunities.org/doc/district-council/wyre,30/07/2022,People and Places,Environmental Services,132B,Blackpool Council,19/07/2022,PE142878,2380.43,0.00,CCTV Service Level Agreement 2020/21,CCTV Running Costs,46831
Wyre Council,http://opendatacommunities.org/doc/district-council/wyre,30/07/2022,People and Places,Environmental Services,132B,Blackpool Council,19/07/2022,PE142881,159.27,0.00,Ref: 2111001Replace clock and sync with all CCTV devices,CCTV Running Costs,46831
Wyre Council,http://opendatacommunities.org/doc/district-council/wyre,30/07/2022,People and Places,Environmental Services,132B,Blackpool Council,19/07/2022,PE142880,2380.43,0.00,Maintenance Costs for Wyre`s CCTV  Apr2021-Mar2022Poulton = 2380.43Cleveleys = 2040.37Fleetwood = 4420.81Garstang = 1360.26,CCTV Running Costs,46831
Wyre Council,http://opendatacommunities.org/doc/district-council/wyre,30/07/2022,People and Places,Environmental Services,132B,Blackpool Council,19/07/2022,PE142880,2040.37,0.00,Maintenance Costs for Wyre`s CCTV  Apr2021-Mar2022Poulton = 2380.43Cleveleys = 2040.37Fleetwood = 4420.81Garstang = 1360.26,CCTV Running Costs,46831
Wyre Council,http://opendatacommunities.org/doc/district-council/wyre,30/07/2022,People and Places,Environmental Services,132B,Blackpool Council,19/07/2022,PE142881,159.27,0.00,Ref: 2111001Replace clock and sync with all CCTV devices,CCTV Running Costs,46831
Wyre Council,http://opendatacommunities.org/doc/district-council/wyre,30/07/2022,People and Places,Environmental Services,132B,Blackpool Council,19/07/2022,PE142878,2040.37,0.00,CCTV Service Level Agreement 2020/21,CCTV Running Costs,46831
Wyre Council,http://opendatacommunities.org/doc/district-council/wyre,30/07/2022,People and Places,Environmental Services,132B,Blackpool Council,22/07/2022,PE142921,5025.88,0.00,Ref 2109001Replace radio links located @ Column 6 in Fleetwood.These connect Copse Road to Column 6Column 6 to Column 7Column 6 to Column 4Parts to Include - per location   :- Radio Link (pair) Smart POE switch * 2 Cabling / Cat 5 Plugs,CCTV Running Costs,46831
Wyre Council,http://opendatacommunities.org/doc/district-council/wyre,30/07/2022,People and Places,Environmental Services,132B,Blackpool Council,19/07/2022,PE142878,4420.81,0.00,CCTV Service Level Agreement 2020/21,CCTV Running Costs,46831
Wyre Council,http://opendatacommunities.org/doc/district-council/wyre,30/07/2022,People and Places,Environmental Services,132B,Blackpool Council,19/07/2022,PE142881,159.27,0.00,Ref: 2111001Replace clock and sync with all CCTV devices,CCTV Running Costs,46831
Wyre Council,http://opendatacommunities.org/doc/district-council/wyre,30/07/2022,People and Places,Environmental Services,132B,Blackpool Council,19/07/2022,PE142880,4420.81,0.00,Maintenance Costs for Wyre`s CCTV  Apr2021-Mar2022Poulton = 2380.43Cleveleys = 2040.37Fleetwood = 4420.81Garstang = 1360.26,CCTV Running Costs,46831
Wyre Council,http://opendatacommunities.org/doc/district-council/wyre,30/07/2022,People and Places,Environmental Services,132B,Blackpool Council,19/07/2022,PE142880,1360.26,0.00,Maintenance Costs for Wyre`s CCTV  Apr2021-Mar2022Poulton = 2380.43Cleveleys = 2040.37Fleetwood = 4420.81Garstang = 1360.26,CCTV Running Costs,46831
Wyre Council,http://opendatacommunities.org/doc/district-council/wyre,30/07/2022,People and Places,Environmental Services,132B,Blackpool Council,19/07/2022,PE142881,159.27,0.00,Ref: 2111001Replace clock and sync with all CCTV devices,CCTV Running Costs,46831
Wyre Council,http://opendatacommunities.org/doc/district-council/wyre,30/07/2022,People and Places,Cultural and Related Services,132A,M D Security,12/07/2022,PE142351,65.00,0.00,Problem with CCTV at Rossall Observatory,CCTV Running Costs,46831
Wyre Council,http://opendatacommunities.org/doc/district-council/wyre,30/07/2022,People and Places,Environmental Services,132B,Graffiti Removal LTD,18/07/2022,PE142848,750.00,0.00,Supply and deliver 8 no Spraycan graffiti remover -- 5 Litres93.75 per 5L,Community Payback Scheme,56007
Wyre Council,http://opendatacommunities.org/doc/district-council/wyre,30/07/2022,People and Places,Environmental Services,132B,Graffiti Removal LTD,18/07/2022,PE142848,395.00,0.00,"4 no Heritage graffiti remover -- 5 Litres98.75 per 5L Delivery to Wyre Council, Copse Road Depot, Copse Road, Fleetwood, FY7 6RP",Community Payback Scheme,56007
Wyre Council,http://opendatacommunities.org/doc/district-council/wyre,30/07/2022,Resources,Support Services,135B,Ebuyer (UK) Ltd,18/07/2022,RS142760,2800.00,0.00,1422473 - Samsung OM55NS - 55`` Large Format Display - Ful-l HD,Comp Hardware Purchases,43500
Wyre Council,http://opendatacommunities.org/doc/district-council/wyre,30/07/2022,Resources,Support Services,135B,Ebuyer (UK) Ltd,18/07/2022,RS142760,10.00,0.00,Shipping,Comp Hardware Purchases,43500
Wyre Council,http://opendatacommunities.org/doc/district-council/wyre,30/07/2022,Resources,Support Services,135B,Ebuyer (UK) Ltd,12/07/2022,RS142680,45.00,0.00,477585 - SmartMount&reg; Universal Flat Wall Mount for 32&qu-ot; to 50&quot; Displays,Comp Hardware Purchases,43500
Wyre Council,http://opendatacommunities.org/doc/district-council/wyre,30/07/2022,Resources,Support Services,135B,Ebuyer (UK) Ltd,12/07/2022,RS142681,695.00,0.00,1415794 - Samsung QB50R-B - 50`` Large Format Display - 4-K UHD,Comp Hardware Purchases,43500
Wyre Council,http://opendatacommunities.org/doc/district-council/wyre,30/07/2022,Resources,Support Services,135B,Ebuyer (UK) Ltd,12/07/2022,RS142681,5.00,0.00,Shipping,Comp Hardware Purchases,43500
Wyre Council,http://opendatacommunities.org/doc/district-council/wyre,30/07/2022,Resources,Support Services,135B,CCS MEDIA LTD,01/07/2022,RS142444,1660.20,0.00,UK703E HP 3 year Next Business Day Respose,Comp Hardware Purchases,43500
Wyre Council,http://opendatacommunities.org/doc/district-council/wyre,30/07/2022,Resources,Support Services,135B,THE NETWORKING PEOPLE (TNP) LTD,13/07/2022,RS142759,173.82,0.00,FC-10-F431F-247-02-12 - FortiAP Services: FortiAP-431F 1 Year FortiCare Premium Support,Computer Equipment Maintenance,43600
Wyre Council,http://opendatacommunities.org/doc/district-council/wyre,30/07/2022,Resources,Support Services,135B,THE NETWORKING PEOPLE (TNP) LTD,13/07/2022,RS142759,103.47,0.00,FC-10-PE221-247-02-12 - FortiAP Services: FortiAP-221E 1 Year FortiCarePremium Support,Computer Equipment Maintenance,43600
Wyre Council,http://opendatacommunities.org/doc/district-council/wyre,30/07/2022,Resources,Support Services,135B,Zurich Municipal,12/07/2022,RS142608,5216.43,0.00,Annual insurance renewal  Combined Policy - QLA 07H081-0083-00 Effective 30/6/22 to 29/6/23 Premium including IPT,Computer Insurance,46004
Wyre Council,http://opendatacommunities.org/doc/district-council/wyre,30/07/2022,People and Places,Planning and Development Servs,132C,Kings Chambers,14/07/2022,PE142831,1350.00,0.00,Legal advice for the local plan,Consultants Fees,42612
Wyre Council,http://opendatacommunities.org/doc/district-council/wyre,30/07/2022,People and Places,Planning and Development Servs,132C,Knight Kavanagh & Page,19/07/2022,PE142883,17883.30,0.00,"Green Infrastructure Study, comprising:Playing Pitch and Outdoor Sports StrategyGreen Infrastructure AuditGreen Infrastructure Strategy",Consultants Fees,42612
Wyre Council,http://opendatacommunities.org/doc/district-council/wyre,30/07/2022,People and Places,Environmental Services,132B,Osborne Richardson,15/07/2022,PE142684,327.60,0.00,To provide Contaminated land & Air Quality Consultancy April 2022-March 2023  (Annual purchase order to draw invoices from throughout the year),Consultants Fees,42612
Wyre Council,http://opendatacommunities.org/doc/district-council/wyre,30/07/2022,People and Places,Environmental Services,132B,Osborne Richardson,06/07/2022,PE142561,1033.20,0.00,To provide Contaminated land & Air Quality Consultancy April 2022-March 2023  (Annual purchase order to draw invoices from throughout the year),Consultants Fees,42612
Wyre Council,http://opendatacommunities.org/doc/district-council/wyre,30/07/2022,Resources,Central Services to the Public,131C,Inform CPI,19/07/2022,RS139908,405.00,0.00,N00510480004003 - N00270340022007 For Inform CPI,Consultants Fees,42612
Wyre Council,http://opendatacommunities.org/doc/district-council/wyre,30/07/2022,Resources,Central Services to the Public,131C,Inform CPI,05/07/2022,RS142400,4360.00,0.00,Analyse & Localise 2022  Analyse Local - Forecasting   CT Finder   SBRR Audit   Virtual Rates Manager,Consultants Fees,42612
Wyre Council,http://opendatacommunities.org/doc/district-council/wyre,30/07/2022,Resources,Central Services to the Public,131C,Inform CPI,05/07/2022,RS142400,3140.00,0.00,Analyse & Localise 2022  Analyse Local - Forecasting   CT Finder   SBRR Audit   Virtual Rates Manager,Consultants Fees,42612
Wyre Council,http://opendatacommunities.org/doc/district-council/wyre,30/07/2022,People and Places,Central Services to the Public,131C,Inform CPI,06/07/2022,PE139988,530.00,0.00,radio mast at the junction of st michaels rd.,Consultants Fees,42612
Wyre Council,http://opendatacommunities.org/doc/district-council/wyre,30/07/2022,People and Places,Central Services to the Public,131C,Inform CPI,06/07/2022,PE139988,130.00,0.00,Moss Lane Caravan Park at hallidays farm moss lane,Consultants Fees,42612
Wyre Council,http://opendatacommunities.org/doc/district-council/wyre,30/07/2022,Resources,Support Services,135B,Greenhalgh Kerr,06/07/2022,RS142574,2549.50,0.00,Professional Charges relating to Steve Noble,Consultants Fees,42612
Wyre Council,http://opendatacommunities.org/doc/district-council/wyre,30/07/2022,People and Places,Planning and Development Servs,132C,Rsk Adas LTD,20/07/2022,PE142452,495.00,0.00,Agricultural advise on planning application between April 2021 - end March 2022,Consultants Fees,42612
Wyre Council,http://opendatacommunities.org/doc/district-council/wyre,30/07/2022,People and Places,Planning and Development Servs,132C,Rsk Adas LTD,01/07/2022,PE142451,495.00,0.00,Agricultural advise on planning application between April 2021 - end March 2022,Consultants Fees,42612
Wyre Council,http://opendatacommunities.org/doc/district-council/wyre,30/07/2022,People and Places,Planning and Development Servs,132C,Rsk Adas LTD,01/07/2022,PE142450,250.00,0.00,Agricultural advise on planning application between April 2021 - end March 2022,Consultants Fees,42612
Wyre Council,http://opendatacommunities.org/doc/district-council/wyre,30/07/2022,People and Places,Planning and Development Servs,132C,Vivid Resourcing Ltd,04/07/2022,PE142511,1001.25,0.00,Additional cost for Vivid resourcing - upto 14/4/2022,Consultants Fees,42612
Wyre Council,http://opendatacommunities.org/doc/district-council/wyre,30/07/2022,Resources,Support Services,135B,THE NETWORKING PEOPLE (TNP) LTD,19/07/2022,RS142861,1000.00,0.00,Block of 20 RMACS,Consultants Fees,42612
Wyre Council,http://opendatacommunities.org/doc/district-council/wyre,30/07/2022,People and Places,"Cultural, Environ and Planning",137B,Halcrow Group LTD,07/07/2022,PE142604,5716.03,0.00,Additional works as authorised by Carl Green,Consultants Fees (New CCR),04022
Wyre Council,http://opendatacommunities.org/doc/district-council/wyre,30/07/2022,People and Places,"Cultural, Environ and Planning",137B,Halcrow Group LTD,07/07/2022,PE142537,1020.04,0.00,Additional works as authorised by Carl Green,Consultants Fees (New CCR),04022
Wyre Council,http://opendatacommunities.org/doc/district-council/wyre,30/07/2022,People and Places,"Cultural, Environ and Planning",137B,Halcrow Group LTD,07/07/2022,PE142537,-1020.04,0.00,Additional works as authorised by Carl Green,Consultants Fees (New CCR),04022
Wyre Council,http://opendatacommunities.org/doc/district-council/wyre,30/07/2022,People and Places,"Cultural, Environ and Planning",137B,The Lancashire Wildlife Trust Ltd,18/07/2022,PE142845,3750.00,0.00,"``For initial engagement activities, mobilisation, start-up costs and for the recruitment and appointment of a 0.5 FTE Engagement Officer``",Consultants Fees (New CCR),04022
Wyre Council,http://opendatacommunities.org/doc/district-council/wyre,30/07/2022,Resources,"Cultural, Environ and Planning",137B,The Lancashire Wildlife Trust Ltd,18/07/2022,RS142850,3750.00,0.00,"``For initial engagement activities, mobilisation, start-up costs and for the recruitment and appointment of a 0.5 FTE Engagement Officer``",Consultants Fees (New CCR),04022
Wyre Council,http://opendatacommunities.org/doc/district-council/wyre,30/07/2022,People and Places,"Cultural, Environ and Planning",137B,Marine Management Organisation,15/07/2022,PE142686,2318.00,0.00,"MMO Licence application fee, case reference Wyre Beach Management Scheme",Consultants Fees (New CCR),04022
Wyre Council,http://opendatacommunities.org/doc/district-council/wyre,30/07/2022,People and Places,"Cultural, Environ and Planning",137B,Susannah Bleakley Consulting,18/07/2022,PE142844,4576.83,0.00,ECO-CoBS Project,Consultants Fees (New CCR),04022
Wyre Council,http://opendatacommunities.org/doc/district-council/wyre,30/07/2022,People and Places,"Cultural, Environ and Planning",137B,Morecambe Bay Partnership,01/07/2022,PE142482,3750.00,0.00,"�For initial engagement activities, mobilisation, start-up costs and for the recruitment and appointment of a 0.5 FTE Engagement Officer�",Consultants Fees (New CCR),04022
Wyre Council,http://opendatacommunities.org/doc/district-council/wyre,30/07/2022,People and Places,"Cultural, Environ and Planning",137B,Morecambe Bay Partnership,01/07/2022,PE142498,9200.00,0.00,Part 1 of 3 payments 2022/2340% of Year 1 of the ECO-COBS Project started 01/04/22,Consultants Fees (New CCR),04022
Wyre Council,http://opendatacommunities.org/doc/district-council/wyre,30/07/2022,Resources,Central Services to the Public,131C,Blackpool Council,25/07/2022,RS142954,1096.00,0.00,Covid Vaccination - 25.06.22,Contain Outbreak Management Fund,46615
Wyre Council,http://opendatacommunities.org/doc/district-council/wyre,30/07/2022,People and Places,Central Services to the Public,131C,Blackpool Council,25/07/2022,PE139479,7542.00,0.00,Covid-19 Pandemic/Contain Outbreak Management Fund,Contain Outbreak Management Fund,46615
Wyre Council,http://opendatacommunities.org/doc/district-council/wyre,30/07/2022,People and Places,Central Services to the Public,131C,Blackpool Council,25/07/2022,PE139479,8374.70,0.00,Covid-19 Pandemic/Contain Outbreak Management Fund,Contain Outbreak Management Fund,46615
Wyre Council,http://opendatacommunities.org/doc/district-council/wyre,30/07/2022,People and Places,Central Services to the Public,131C,Blackpool Council,25/07/2022,PE139503,-7542.00,0.00,Covid-19 Pandemic/Contain Outbreak Management Fund,Contain Outbreak Management Fund,46615
Wyre Council,http://opendatacommunities.org/doc/district-council/wyre,30/07/2022,People and Places,Central Services to the Public,131C,Blackpool Council,25/07/2022,PE139503,-8374.70,0.00,Covid-19 Pandemic/Contain Outbreak Management Fund,Contain Outbreak Management Fund,46615
Wyre Council,http://opendatacommunities.org/doc/district-council/wyre,30/07/2022,Resources,Central Services to the Public,131C,LANCASHIRE COUNTY PENSION FUND,12/07/2022,RS142694,75109.53,0.00,WYRE TOP UP ( e-mail 07/06/2022),Contain Outbreak Management Fund,46615
Wyre Council,http://opendatacommunities.org/doc/district-council/wyre,30/07/2022,People and Places,"Cultural, Environ and Planning",137B,Marine Management Organisation,01/07/2022,PE142481,762.50,0.00,Scheme Wyre Beach Management Scheme Phase 2 ;  MMO reference:  MLA/2022/00176Budgetary estimated cost (As of 13/05/2022)Please note that estimated costs may be subject to change.DescriptionRate (�)Hours/UnitsAmount (�)MMO Hours122.004048,Contract (New CCR),04020
Wyre Council,http://opendatacommunities.org/doc/district-council/wyre,30/07/2022,People and Places,"Cultural, Environ and Planning",137B,Landscape Engineering LTD,05/07/2022,PE142544,33439.01,0.00,"External works at Custom House Car Park, Fleetwood (Historic England Heritage Action Zone Project).",Contract (New CCR),04020
Wyre Council,http://opendatacommunities.org/doc/district-council/wyre,30/07/2022,People and Places,Non Service Related Exp,137F,M D Security,19/07/2022,PE141727,5000.00,0.00,Supply and install new approved cctv system within Fleetwood market to cover internal and external areas,Contract (New CCR),04020
Wyre Council,http://opendatacommunities.org/doc/district-council/wyre,30/07/2022,People and Places,"Cultural, Environ and Planning",137B,DCM Projects LTD,22/07/2022,PE142920,2180.00,0.00,Winmarleigh Village Hall PR3 0LA - Perimeter repairs - 43lm with a 250 - 300mm cutback  and relay in Black EPDM,Contract (New CCR),04020
Wyre Council,http://opendatacommunities.org/doc/district-council/wyre,30/07/2022,Resources,"Cultural, Environ and Planning",137B,VODAFONE LIMITED,05/07/2022,RS142509,24.00,0.00,Monthly Charges,Contract (New CCR),04020
Wyre Council,http://opendatacommunities.org/doc/district-council/wyre,30/07/2022,Resources,"Cultural, Environ and Planning",137B,VODAFONE LIMITED,01/07/2022,RS141680,24.00,0.00,Monthly Charges,Contract (New CCR),04020
Wyre Council,http://opendatacommunities.org/doc/district-council/wyre,30/07/2022,Resources,"Cultural, Environ and Planning",137B,VODAFONE LIMITED,01/07/2022,RS141097,24.00,0.00,Monthly Charges,Contract (New CCR),04020
Wyre Council,http://opendatacommunities.org/doc/district-council/wyre,30/07/2022,People and Places,"Cultural, Environ and Planning",137B,Balfour Beatty Civil Engineering Ltd,11/07/2022,PE142646,4298.60,0.00,Wyre Beach Management Scheme Phase 1 - Preconstruction Works.FAO Chloe SumnerBalfour Beatty Civil Engineering LtdChaddock Lane WorsleyManchesterM28 1XY,Contract (New CCR),04020
Wyre Council,http://opendatacommunities.org/doc/district-council/wyre,30/07/2022,Resources,Corporate and Democratic Core,131A,Apse,28/07/2022,RS142961,4297.00,0.00,APSE Performance Networks 2022-2023 Membership Fee APSE Member Small - All Services,Corporate and Professional Subscriptions,45300
Wyre Council,http://opendatacommunities.org/doc/district-council/wyre,30/07/2022,Resources,Cultural and Related Services,132A,VODAFONE LIMITED,05/07/2022,RS142509,24.00,0.00,Monthly Charges,Corporate and Professional Subscriptions,45300
Wyre Council,http://opendatacommunities.org/doc/district-council/wyre,30/07/2022,Resources,Cultural and Related Services,132A,VODAFONE LIMITED,01/07/2022,RS141097,24.00,0.00,Monthly Charges,Corporate and Professional Subscriptions,45300
Wyre Council,http://opendatacommunities.org/doc/district-council/wyre,30/07/2022,Resources,Cultural and Related Services,132A,VODAFONE LIMITED,01/07/2022,RS141680,24.00,0.00,Monthly Charges,Corporate and Professional Subscriptions,45300
Wyre Council,http://opendatacommunities.org/doc/district-council/wyre,30/07/2022,Resources,Support Services,135B,BLACKPOOL AND FYLDE COLLEGE,14/07/2022,RS142825,185.00,0.00,2 Day first aid refresher course 6th July 2022 for Graeme Nuttall,Corporate Training - Health and Safety,17002
Wyre Council,http://opendatacommunities.org/doc/district-council/wyre,30/07/2022,Resources,Support Services,135B,BLACKPOOL AND FYLDE COLLEGE,14/07/2022,RS142832,185.00,0.00,First Aid Refresher Course S Hasty 8th-9th June 2022,Corporate Training - Health and Safety,17002
Wyre Council,http://opendatacommunities.org/doc/district-council/wyre,30/07/2022,Resources,Support Services,135B,BLACKPOOL AND FYLDE COLLEGE,05/07/2022,RS142549,210.00,0.00,3 Day First Aid at Work Course for William Whitworth22 - 24 June 2022,Corporate Training - Health and Safety,17002
Wyre Council,http://opendatacommunities.org/doc/district-council/wyre,30/07/2022,Resources,Support Services,135B,BLACKPOOL AND FYLDE COLLEGE,05/07/2022,RS142550,210.00,0.00,3 day first aid at work course for Stuart Bimpson25-27 May 2022,Corporate Training - Health and Safety,17002
Wyre Council,http://opendatacommunities.org/doc/district-council/wyre,30/07/2022,Resources,Support Services,135B,Bill Rogerson Safety Services LTD,11/07/2022,RS142674,350.00,0.00,"To deliver manual handling training in the Members Lounge of the Civic Centre, Poulton27th June 2022a.m. session 8.30 - 11.30p.m. session 12.30 - 3.30upto 10 delegates per course",Corporate Training - Health and Safety,17002
Wyre Council,http://opendatacommunities.org/doc/district-council/wyre,30/07/2022,Resources,Support Services,135B,Bill Rogerson Safety Services LTD,12/07/2022,RS142733,400.00,0.00,"To deliver Working at Height, Ladders and Steps at your premises upto 10 delegates each7 July 8.30 - 11.30          12.30 - 3.30",Corporate Training - Health and Safety,17002
Wyre Council,http://opendatacommunities.org/doc/district-council/wyre,30/07/2022,Resources,Support Services,135B,Bill Rogerson Safety Services LTD,12/07/2022,RS142732,400.00,0.00,"To deliver Working at Height, Ladders and Steps at your premises upto 10 delegates each6 July 8.30 - 11.30          12.30 - 3.30",Corporate Training - Health and Safety,17002
Wyre Council,http://opendatacommunities.org/doc/district-council/wyre,30/07/2022,Resources,Support Services,135B,Bill Rogerson Safety Services LTD,14/07/2022,RS142830,120.00,0.00,COSHH  Assessor Course x 2 delegates 9-1  at your premises14th July 2022,Corporate Training - Health and Safety,17002
Wyre Council,http://opendatacommunities.org/doc/district-council/wyre,30/07/2022,Resources,Support Services,135B,Bill Rogerson Safety Services LTD,14/07/2022,RS142829,180.00,0.00,COSHH Assessor Course 3 delegates 13th July 9-1 at your premises,Corporate Training - Health and Safety,17002
Wyre Council,http://opendatacommunities.org/doc/district-council/wyre,30/07/2022,Finance,Current Assets,130B,,13/07/2022,WPST00063502,15052.56,0.00,ctax refunds 8/7,Council Tax Refunds,01100
Wyre Council,http://opendatacommunities.org/doc/district-council/wyre,30/07/2022,Finance,Current Assets,130B,,14/07/2022,WPST00063502,15052.56,0.00,ctax refunds 8/7,Council Tax Refunds,01100
Wyre Council,http://opendatacommunities.org/doc/district-council/wyre,30/07/2022,Finance,Current Assets,130B,,07/07/2022,WPST00062664,15528.76,0.00,ctax refunds 1/7,Council Tax Refunds,01100
Wyre Council,http://opendatacommunities.org/doc/district-council/wyre,30/07/2022,People and Places,Environmental Services,132B,Dennis Eagle LTD,20/07/2022,PE142826,651.86,0.00,supply and delivery of various items on invoice de11509599,Daywork Materials (Excl.Tyres),30507
Wyre Council,http://opendatacommunities.org/doc/district-council/wyre,30/07/2022,People and Places,Environmental Services,132B,EK Motors Factors LTD,11/07/2022,PE142632,19.20,0.00,PARTS,Daywork Materials (Excl.Tyres),30507
Wyre Council,http://opendatacommunities.org/doc/district-council/wyre,30/07/2022,People and Places,Environmental Services,132B,EK Motors Factors LTD,11/07/2022,PE142629,99.88,0.00,PARTS,Daywork Materials (Excl.Tyres),30507
Wyre Council,http://opendatacommunities.org/doc/district-council/wyre,30/07/2022,People and Places,Environmental Services,132B,EK Motors Factors LTD,11/07/2022,PE142631,105.73,0.00,PARTS,Daywork Materials (Excl.Tyres),30507
Wyre Council,http://opendatacommunities.org/doc/district-council/wyre,30/07/2022,People and Places,Support Services,135B,EK Motors Factors LTD,11/07/2022,PE142615,33.18,0.00,PARTS,Daywork Materials (Excl.Tyres),30507
Wyre Council,http://opendatacommunities.org/doc/district-council/wyre,30/07/2022,People and Places,Support Services,135B,EK Motors Factors LTD,11/07/2022,PE142621,22.39,0.00,PARTS,Daywork Materials (Excl.Tyres),30507
Wyre Council,http://opendatacommunities.org/doc/district-council/wyre,30/07/2022,People and Places,Support Services,135B,EK Motors Factors LTD,11/07/2022,PE142623,43.32,0.00,PARTS,Daywork Materials (Excl.Tyres),30507
Wyre Council,http://opendatacommunities.org/doc/district-council/wyre,30/07/2022,People and Places,Support Services,135B,EK Motors Factors LTD,11/07/2022,PE142622,59.48,0.00,PARTS,Daywork Materials (Excl.Tyres),30507
Wyre Council,http://opendatacommunities.org/doc/district-council/wyre,30/07/2022,People and Places,Environmental Services,132B,EK Motors Factors LTD,11/07/2022,PE142628,17.62,0.00,PARTS,Daywork Materials (Excl.Tyres),30507
Wyre Council,http://opendatacommunities.org/doc/district-council/wyre,30/07/2022,People and Places,Environmental Services,132B,EK Motors Factors LTD,11/07/2022,PE142624,14.95,0.00,PARTS,Daywork Materials (Excl.Tyres),30507
Wyre Council,http://opendatacommunities.org/doc/district-council/wyre,30/07/2022,People and Places,Support Services,135B,EK Motors Factors LTD,11/07/2022,PE142620,5.61,0.00,PARTS,Daywork Materials (Excl.Tyres),30507
Wyre Council,http://opendatacommunities.org/doc/district-council/wyre,30/07/2022,People and Places,Environmental Services,132B,EK Motors Factors LTD,11/07/2022,PE142625,183.31,0.00,PARTS,Daywork Materials (Excl.Tyres),30507
Wyre Council,http://opendatacommunities.org/doc/district-council/wyre,30/07/2022,People and Places,Environmental Services,132B,EK Motors Factors LTD,11/07/2022,PE142627,24.49,0.00,PARTS,Daywork Materials (Excl.Tyres),30507
Wyre Council,http://opendatacommunities.org/doc/district-council/wyre,30/07/2022,People and Places,Environmental Services,132B,EK Motors Factors LTD,11/07/2022,PE142626,20.59,0.00,PARTS,Daywork Materials (Excl.Tyres),30507
Wyre Council,http://opendatacommunities.org/doc/district-council/wyre,30/07/2022,People and Places,Support Services,135B,EK Motors Factors LTD,11/07/2022,PE142614,362.10,0.00,PARTS,Daywork Materials (Excl.Tyres),30507
Wyre Council,http://opendatacommunities.org/doc/district-council/wyre,30/07/2022,People and Places,Support Services,135B,EK Motors Factors LTD,11/07/2022,PE142613,12.66,0.00,PARTS,Daywork Materials (Excl.Tyres),30507
Wyre Council,http://opendatacommunities.org/doc/district-council/wyre,30/07/2022,People and Places,Support Services,135B,EK Motors Factors LTD,11/07/2022,PE142611,22.76,0.00,PARTS,Daywork Materials (Excl.Tyres),30507
Wyre Council,http://opendatacommunities.org/doc/district-council/wyre,30/07/2022,People and Places,Support Services,135B,FR Sharrock LTD,19/07/2022,PE142663,162.82,0.00,Various parts,Daywork Materials (Excl.Tyres),30507
Wyre Council,http://opendatacommunities.org/doc/district-council/wyre,30/07/2022,People and Places,Support Services,135B,FR Sharrock LTD,19/07/2022,PE142663,512.91,0.00,Various parts,Daywork Materials (Excl.Tyres),30507
Wyre Council,http://opendatacommunities.org/doc/district-council/wyre,30/07/2022,People and Places,Cultural and Related Services,132A,Carlsberg UK LTD,22/07/2022,PE142936,76.76,0.00,Marine Hall co2 and gas,Drinks,41001
Wyre Council,http://opendatacommunities.org/doc/district-council/wyre,30/07/2022,People and Places,Cultural and Related Services,132A,Carlsberg UK LTD,28/07/2022,PE142996,1844.58,0.00,Marine Hall drinks,Drinks,41001
Wyre Council,http://opendatacommunities.org/doc/district-council/wyre,30/07/2022,People and Places,Cultural and Related Services,132A,Carlsberg UK LTD,28/07/2022,PE142995,1222.76,0.00,Marine Hall drinks,Drinks,41001
Wyre Council,http://opendatacommunities.org/doc/district-council/wyre,30/07/2022,People and Places,Cultural and Related Services,132A,Carlsberg UK LTD,28/07/2022,PE143005,1522.82,0.00,Drinks for bar at Marine Hall,Drinks,41001
Wyre Council,http://opendatacommunities.org/doc/district-council/wyre,30/07/2022,People and Places,Cultural and Related Services,132A,Carlsberg UK LTD,26/07/2022,PE142960,93.10,0.00,CO2 and mixed gas rental,Drinks,41001
Wyre Council,http://opendatacommunities.org/doc/district-council/wyre,30/07/2022,People and Places,Cultural and Related Services,132A,L W C Drinks LTD,27/07/2022,PE142992,831.56,0.00,Drinks - Marine Hall,Drinks,41001
Wyre Council,http://opendatacommunities.org/doc/district-council/wyre,30/07/2022,People and Places,Environmental Services,132B,Corona Energy Retail 4 Limited,13/07/2022,PE142324,36.63,0.00,Electricity Charges,Electricity,22000
Wyre Council,http://opendatacommunities.org/doc/district-council/wyre,30/07/2022,People and Places,Cultural and Related Services,132A,Corona Energy Retail 4 Limited,13/07/2022,PE142324,30.30,0.00,Electricity Charges,Electricity,22000
Wyre Council,http://opendatacommunities.org/doc/district-council/wyre,30/07/2022,People and Places,Cultural and Related Services,132A,Corona Energy Retail 4 Limited,14/07/2022,PE142792,29.60,0.00,Electricity Charges,Electricity,22000
Wyre Council,http://opendatacommunities.org/doc/district-council/wyre,30/07/2022,People and Places,Cultural and Related Services,132A,Corona Energy Retail 4 Limited,14/07/2022,PE142792,49.69,0.00,Electricity Charges,Electricity,22000
Wyre Council,http://opendatacommunities.org/doc/district-council/wyre,30/07/2022,People and Places,Cultural and Related Services,132A,Corona Energy Retail 4 Limited,13/07/2022,PE142324,54.54,0.00,Electricity Charges,Electricity,22000
Wyre Council,http://opendatacommunities.org/doc/district-council/wyre,30/07/2022,People and Places,Planning and Development Servs,132C,Corona Energy Retail 4 Limited,13/07/2022,PE142324,552.57,0.00,Electricity Charges,Electricity,22000
Wyre Council,http://opendatacommunities.org/doc/district-council/wyre,30/07/2022,People and Places,Planning and Development Servs,132C,Corona Energy Retail 4 Limited,14/07/2022,PE142792,253.10,0.00,Electricity Charges,Electricity,22000
Wyre Council,http://opendatacommunities.org/doc/district-council/wyre,30/07/2022,People and Places,Environmental Services,132B,Corona Energy Retail 4 Limited,13/07/2022,PE142324,89.65,0.00,Electricity Charges,Electricity,22000
Wyre Council,http://opendatacommunities.org/doc/district-council/wyre,30/07/2022,People and Places,Environmental Services,132B,Corona Energy Retail 4 Limited,14/07/2022,PE142792,50.16,0.00,Electricity Charges,Electricity,22000
Wyre Council,http://opendatacommunities.org/doc/district-council/wyre,30/07/2022,People and Places,Environmental Services,132B,Corona Energy Retail 4 Limited,13/07/2022,PE142324,150.89,0.00,Electricity Charges,Electricity,22000
Wyre Council,http://opendatacommunities.org/doc/district-council/wyre,30/07/2022,People and Places,Environmental Services,132B,Corona Energy Retail 4 Limited,14/07/2022,PE142792,143.04,0.00,Electricity Charges,Electricity,22000
Wyre Council,http://opendatacommunities.org/doc/district-council/wyre,30/07/2022,People and Places,Cultural and Related Services,132A,Corona Energy Retail 4 Limited,13/07/2022,PE142324,66.67,0.00,Electricity Charges,Electricity,22000
Wyre Council,http://opendatacommunities.org/doc/district-council/wyre,30/07/2022,People and Places,Cultural and Related Services,132A,Corona Energy Retail 4 Limited,14/07/2022,PE142792,87.66,0.00,Electricity Charges,Electricity,22000
Wyre Council,http://opendatacommunities.org/doc/district-council/wyre,30/07/2022,People and Places,Cultural and Related Services,132A,Corona Energy Retail 4 Limited,14/07/2022,PE142792,99.25,0.00,Electricity Charges,Electricity,22000
Wyre Council,http://opendatacommunities.org/doc/district-council/wyre,30/07/2022,People and Places,Cultural and Related Services,132A,Corona Energy Retail 4 Limited,14/07/2022,PE142792,450.28,0.00,Electricity Charges,Electricity,22000
Wyre Council,http://opendatacommunities.org/doc/district-council/wyre,30/07/2022,People and Places,Cultural and Related Services,132A,Corona Energy Retail 4 Limited,13/07/2022,PE142324,589.13,0.00,Electricity Charges,Electricity,22000
Wyre Council,http://opendatacommunities.org/doc/district-council/wyre,30/07/2022,People and Places,Cultural and Related Services,132A,Corona Energy Retail 4 Limited,13/07/2022,PE142324,149.38,0.00,Electricity Charges,Electricity,22000
Wyre Council,http://opendatacommunities.org/doc/district-council/wyre,30/07/2022,People and Places,Cultural and Related Services,132A,Corona Energy Retail 4 Limited,14/07/2022,PE142792,141.88,0.00,Electricity Charges,Electricity,22000
Wyre Council,http://opendatacommunities.org/doc/district-council/wyre,30/07/2022,People and Places,Cultural and Related Services,132A,Corona Energy Retail 4 Limited,14/07/2022,PE142792,134.37,0.00,Electricity Charges,Electricity,22000
Wyre Council,http://opendatacommunities.org/doc/district-council/wyre,30/07/2022,People and Places,Cultural and Related Services,132A,Corona Energy Retail 4 Limited,13/07/2022,PE142324,207.01,0.00,Electricity Charges,Electricity,22000
Wyre Council,http://opendatacommunities.org/doc/district-council/wyre,30/07/2022,People and Places,Environmental Services,132B,Corona Energy Retail 4 Limited,13/07/2022,PE142324,226.71,0.00,Electricity Charges,Electricity,22000
Wyre Council,http://opendatacommunities.org/doc/district-council/wyre,30/07/2022,People and Places,Environmental Services,132B,Corona Energy Retail 4 Limited,13/07/2022,PE142324,1147.50,0.00,Electricity Charges,Electricity,22000
Wyre Council,http://opendatacommunities.org/doc/district-council/wyre,30/07/2022,People and Places,Environmental Services,132B,Corona Energy Retail 4 Limited,14/07/2022,PE142792,228.46,0.00,Electricity Charges,Electricity,22000
Wyre Council,http://opendatacommunities.org/doc/district-council/wyre,30/07/2022,People and Places,Environmental Services,132B,Corona Energy Retail 4 Limited,14/07/2022,PE142792,1053.01,0.00,Electricity Charges,Electricity,22000
Wyre Council,http://opendatacommunities.org/doc/district-council/wyre,30/07/2022,People and Places,Environmental Services,132B,Corona Energy Retail 4 Limited,14/07/2022,PE142792,36.63,0.00,Electricity Charges,Electricity,22000
Wyre Council,http://opendatacommunities.org/doc/district-council/wyre,30/07/2022,People and Places,Central Services to the Public,131C,Corona Energy Retail 4 Limited,14/07/2022,PE142792,531.19,0.00,Electricity Charges,Electricity,22000
Wyre Council,http://opendatacommunities.org/doc/district-council/wyre,30/07/2022,People and Places,Central Services to the Public,131C,Corona Energy Retail 4 Limited,13/07/2022,PE142324,552.56,0.00,Electricity Charges,Electricity,22000
Wyre Council,http://opendatacommunities.org/doc/district-council/wyre,30/07/2022,People and Places,Cultural and Related Services,132A,Corona Energy Retail 4 Limited,14/07/2022,PE142792,513.83,0.00,Electricity Charges,Electricity,22000
Wyre Council,http://opendatacommunities.org/doc/district-council/wyre,30/07/2022,People and Places,Cultural and Related Services,132A,Corona Energy Retail 4 Limited,14/07/2022,PE142792,203.19,0.00,Electricity Charges,Electricity,22000
Wyre Council,http://opendatacommunities.org/doc/district-council/wyre,30/07/2022,People and Places,Cultural and Related Services,132A,Corona Energy Retail 4 Limited,13/07/2022,PE142324,193.93,0.00,Electricity Charges,Electricity,22000
Wyre Council,http://opendatacommunities.org/doc/district-council/wyre,30/07/2022,People and Places,Cultural and Related Services,132A,Corona Energy Retail 4 Limited,13/07/2022,PE142324,216.42,0.00,Electricity Charges,Electricity,22000
Wyre Council,http://opendatacommunities.org/doc/district-council/wyre,30/07/2022,People and Places,Cultural and Related Services,132A,Corona Energy Retail 4 Limited,13/07/2022,PE142324,31.61,0.00,Electricity Charges,Electricity,22000
Wyre Council,http://opendatacommunities.org/doc/district-council/wyre,30/07/2022,People and Places,Cultural and Related Services,132A,Corona Energy Retail 4 Limited,14/07/2022,PE142792,31.61,0.00,Electricity Charges,Electricity,22000
Wyre Council,http://opendatacommunities.org/doc/district-council/wyre,30/07/2022,People and Places,Cultural and Related Services,132A,Corona Energy Retail 4 Limited,14/07/2022,PE142792,121.85,0.00,Electricity Charges,Electricity,22000
Wyre Council,http://opendatacommunities.org/doc/district-council/wyre,30/07/2022,People and Places,Cultural and Related Services,132A,Corona Energy Retail 4 Limited,13/07/2022,PE142324,105.22,0.00,Electricity Charges,Electricity,22000
Wyre Council,http://opendatacommunities.org/doc/district-council/wyre,30/07/2022,People and Places,Cultural and Related Services,132A,Corona Energy Retail 4 Limited,13/07/2022,PE142324,118.37,0.00,Electricity Charges,Electricity,22000
Wyre Council,http://opendatacommunities.org/doc/district-council/wyre,30/07/2022,People and Places,Cultural and Related Services,132A,Corona Energy Retail 4 Limited,13/07/2022,PE142324,366.73,0.00,Electricity Charges,Electricity,22000
Wyre Council,http://opendatacommunities.org/doc/district-council/wyre,30/07/2022,People and Places,Cultural and Related Services,132A,Corona Energy Retail 4 Limited,14/07/2022,PE142792,346.98,0.00,Electricity Charges,Electricity,22000
Wyre Council,http://opendatacommunities.org/doc/district-council/wyre,30/07/2022,People and Places,Cultural and Related Services,132A,Corona Energy Retail 4 Limited,14/07/2022,PE142792,42.71,0.00,Electricity Charges,Electricity,22000
Wyre Council,http://opendatacommunities.org/doc/district-council/wyre,30/07/2022,People and Places,Cultural and Related Services,132A,Corona Energy Retail 4 Limited,13/07/2022,PE142324,44.36,0.00,Electricity Charges,Electricity,22000
Wyre Council,http://opendatacommunities.org/doc/district-council/wyre,30/07/2022,People and Places,Cultural and Related Services,132A,Corona Energy Retail 4 Limited,13/07/2022,PE142324,143.61,0.00,Electricity Charges,Electricity,22000
Wyre Council,http://opendatacommunities.org/doc/district-council/wyre,30/07/2022,People and Places,Cultural and Related Services,132A,Corona Energy Retail 4 Limited,14/07/2022,PE142792,139.44,0.00,Electricity Charges,Electricity,22000
Wyre Council,http://opendatacommunities.org/doc/district-council/wyre,30/07/2022,People and Places,Cultural and Related Services,132A,Corona Energy Retail 4 Limited,14/07/2022,PE142792,69.23,0.00,Electricity Charges,Electricity,22000
Wyre Council,http://opendatacommunities.org/doc/district-council/wyre,30/07/2022,People and Places,Cultural and Related Services,132A,Corona Energy Retail 4 Limited,13/07/2022,PE142324,68.85,0.00,Electricity Charges,Electricity,22000
Wyre Council,http://opendatacommunities.org/doc/district-council/wyre,30/07/2022,People and Places,Environmental Services,132B,Corona Energy Retail 4 Limited,13/07/2022,PE142324,286.32,0.00,Electricity Charges,Electricity,22000
Wyre Council,http://opendatacommunities.org/doc/district-council/wyre,30/07/2022,People and Places,Environmental Services,132B,Corona Energy Retail 4 Limited,14/07/2022,PE142792,263.79,0.00,Electricity Charges,Electricity,22000
Wyre Council,http://opendatacommunities.org/doc/district-council/wyre,30/07/2022,People and Places,Planning and Development Servs,132C,Corona Energy Retail 4 Limited,14/07/2022,PE142792,563.23,0.00,Electricity Charges,Electricity,22000
Wyre Council,http://opendatacommunities.org/doc/district-council/wyre,30/07/2022,People and Places,Planning and Development Servs,132C,Corona Energy Retail 4 Limited,13/07/2022,PE142324,578.20,0.00,Electricity Charges,Electricity,22000
Wyre Council,http://opendatacommunities.org/doc/district-council/wyre,30/07/2022,People and Places,Cultural and Related Services,132A,Andrew Signs LTD,20/07/2022,PE142889,322.60,0.00,various signs  already received on invoice 1241,Emergency Telephones,21021
Wyre Council,http://opendatacommunities.org/doc/district-council/wyre,30/07/2022,Resources,Support Services,135B,Zurich Municipal,12/07/2022,RS142608,55807.03,0.00,Annual insurance renewal  Combined Policy - QLA 07H081-0083-00 Effective 30/6/22 to 29/6/23 Premium including IPT,Employee Related Insurance,18003
Wyre Council,http://opendatacommunities.org/doc/district-council/wyre,30/07/2022,Finance,Central Services to the Public,131C,,14/07/2022,WPST00063501,20850.00,0.00,energy rebate scheme 8/7,Energy Rebate Payment,45124
Wyre Council,http://opendatacommunities.org/doc/district-council/wyre,30/07/2022,Finance,Central Services to the Public,131C,,20/07/2022,WPST00064224,12900.00,0.00,energy rebate 15/7,Energy Rebate Payment,45124
Wyre Council,http://opendatacommunities.org/doc/district-council/wyre,30/07/2022,Finance,Central Services to the Public,131C,,20/07/2022,WPST00064225,3450.00,0.00,energy rebate 15/7,Energy Rebate Payment,45124
Wyre Council,http://opendatacommunities.org/doc/district-council/wyre,30/07/2022,Finance,Central Services to the Public,131C,,07/07/2022,WPST00062666,22050.00,0.00,Energy rebat - main scheme 1/7,Energy Rebate Payment,45124
Wyre Council,http://opendatacommunities.org/doc/district-council/wyre,30/07/2022,Finance,Central Services to the Public,131C,,13/07/2022,WPST00063501,20850.00,0.00,energy rebate scheme 8/7,Energy Rebate Payment,45124
Wyre Council,http://opendatacommunities.org/doc/district-council/wyre,30/07/2022,Finance,Central Services to the Public,131C,,07/07/2022,WPST00062667,15600.00,0.00,Energy renate - discretionary 1/7,Energy Rebate Payment,45124
Wyre Council,http://opendatacommunities.org/doc/district-council/wyre,30/07/2022,Resources,Central Services to the Public,131C,Critiqom LTD,12/07/2022,RS142186,2454.10,0.00,ER Rebate Letters Non DD,Energy Rebate Payment,45124
Wyre Council,http://opendatacommunities.org/doc/district-council/wyre,30/07/2022,Resources,Support Services,135B,Zurich Municipal,12/07/2022,RS142609,5373.72,0.00,Annual Insurance renewal  Engineering Inspection Policy - EI 07H081-0087,Engineering Insurance,29001
Wyre Council,http://opendatacommunities.org/doc/district-council/wyre,30/07/2022,People and Places,Cultural and Related Services,132A,Fleetwood Town Community Trust,28/07/2022,PE143009,7390.00,0.00,Trysport Delivery,External Coaching,46850
Wyre Council,http://opendatacommunities.org/doc/district-council/wyre,30/07/2022,People and Places,Cultural and Related Services,132A,Glasdon UK LTD,12/07/2022,PE141779,745.68,0.00,1 Pembridge table with wheel chair access1 x 150 x 50mm memorial plaque,External Contractor,46700
Wyre Council,http://opendatacommunities.org/doc/district-council/wyre,30/07/2022,People and Places,Cultural and Related Services,132A,Bradshaw`s Quality Travel Ltd,06/07/2022,PE142570,750.00,0.00,Coach travel for up to 24 people for the following dates/locations for Wyre Way Walk (part of Garstang Walking Festival 2022: Sat 30 April - 9.00am - St Michaels Village Hall to Knott End Car Park - 250.00 Sun 1st May - 9.00am - Dolphinholme Village Hall,External Contractor,46700
Wyre Council,http://opendatacommunities.org/doc/district-council/wyre,30/07/2022,Resources,Support Services,135B,Zurich Municipal,12/07/2022,RS142608,4122.45,0.00,Annual insurance renewal  Combined Policy - QLA 07H081-0083-00 Effective 30/6/22 to 29/6/23 Premium including IPT,Fidelity Insurance,46001
Wyre Council,http://opendatacommunities.org/doc/district-council/wyre,30/07/2022,People and Places,Environmental Services,132B,United Utilities Standpipes,01/07/2022,PE142371,194.26,0.00,"FAO Rachel Aitken Senior Client Liaison Scientist Quality & Scientific Services United Utilities   T: 01925 677103 unitedutilities.com   PWS Supply Ref: 207/WP/27 - Springwood Supply  PSW Analysis at Lower House Farm, Dynojet, kitchen tap on 21/4/2022  Re",Food and Drug Etc Samples,46809
Wyre Council,http://opendatacommunities.org/doc/district-council/wyre,30/07/2022,People and Places,Environmental Services,132B,United Utilities Standpipes,01/07/2022,PE141802,240.00,0.00,"PWS Supply Ref: 207/WP/21  PSW Analysis kitchen cold tap, Lower Fairsnape Farm, Bleasdale Lane, Bleasdale PR3 1UY on 8/3/2022   Reg 9 (C01) Tag No. 63835340 & 63784109",Food and Drug Etc Samples,46809
Wyre Council,http://opendatacommunities.org/doc/district-council/wyre,30/07/2022,People and Places,Environmental Services,132B,United Utilities Standpipes,01/07/2022,PE141802,240.00,0.00,"PWS Supply Ref: 207/WP/18  PSW Analysis kitchen cold tap, Broadgate Farm, Bleasdale Lane, Bleasdale PR3 1UR on 22/3/2022  Reg 9 (C01) Tag No. 66141491",Food and Drug Etc Samples,46809
Wyre Council,http://opendatacommunities.org/doc/district-council/wyre,30/07/2022,People and Places,Environmental Services,132B,United Utilities Standpipes,01/07/2022,PE141802,50.00,0.00,"PWS Supply Ref: 207/WP/32 - Stang Yule Supply  PSW Analysis cold kitchen tap resample Stang Yule, Bleasdale on 22/3/2022  Reg 10 Tag No. 638 35341",Food and Drug Etc Samples,46809
Wyre Council,http://opendatacommunities.org/doc/district-council/wyre,30/07/2022,People and Places,Environmental Services,132B,United Utilities Standpipes,01/07/2022,PE141802,240.00,0.00,"FAO Rachel Aitken Senior Client Liaison Scientist Quality & Scientific Services United Utilities   T: 01925 677103 unitedutilities.com   PWS Supply Ref: 207/WP/29 Barnacre Lodge Supply  PSW Analysis kitchen cold tap, Arkrights Farm Partridge Lodge Kitchen",Food and Drug Etc Samples,46809
Wyre Council,http://opendatacommunities.org/doc/district-council/wyre,30/07/2022,People and Places,Environmental Services,132B,United Utilities Standpipes,01/07/2022,PE141802,153.09,0.00,"FAO Rachel Aitken Senior Client Liaison Scientist Quality & Scientific Services United Utilities   T: 01925 677103 unitedutilities.com   PWS Supply Ref: 207/WP/28  PSW Analysis kitchen cold tap, Sandholme Mill on 31/3/2022  Reg 9",Food and Drug Etc Samples,46809
Wyre Council,http://opendatacommunities.org/doc/district-council/wyre,30/07/2022,People and Places,Environmental Services,132B,United Utilities Standpipes,01/07/2022,PE142371,50.00,0.00,"FAO Rachel Aitken Senior Client Liaison Scientist Quality & Scientific Services United Utilities   T: 01925 677103 unitedutilities.com   PWS Supply Ref: 207/WP/02 Spout House Supply  PSW Analysis kitchen cold tap, RE Engineering Kitchen tap, on 13/4/2022",Food and Drug Etc Samples,46809
Wyre Council,http://opendatacommunities.org/doc/district-council/wyre,30/07/2022,People and Places,Support Services,135B,Allstar Business Solutions LTD,11/07/2022,PE142595,583.64,0.00,Fuel Charges,Fuel,30500
Wyre Council,http://opendatacommunities.org/doc/district-council/wyre,30/07/2022,People and Places,Support Services,135B,Allstar Business Solutions LTD,25/07/2022,PE142325,212.95,0.00,,Fuel,30500
Wyre Council,http://opendatacommunities.org/doc/district-council/wyre,30/07/2022,People and Places,Support Services,135B,Allstar Business Solutions LTD,19/07/2022,PE142594,498.67,0.00,Monthly Fuel Charges,Fuel,30500
Wyre Council,http://opendatacommunities.org/doc/district-council/wyre,30/07/2022,People and Places,Support Services,135B,Allstar Business Solutions LTD,11/07/2022,PE142595,496.67,0.00,Fuel Charges,Fuel,30500
Wyre Council,http://opendatacommunities.org/doc/district-council/wyre,30/07/2022,People and Places,Support Services,135B,Allstar Business Solutions LTD,19/07/2022,PE142594,544.47,0.00,Monthly Fuel Charges,Fuel,30500
Wyre Council,http://opendatacommunities.org/doc/district-council/wyre,30/07/2022,People and Places,Support Services,135B,Allstar Business Solutions LTD,25/07/2022,PE142325,356.84,0.00,,Fuel,30500
Wyre Council,http://opendatacommunities.org/doc/district-council/wyre,30/07/2022,People and Places,Cultural and Related Services,132A,AvantiGas ON Ltd,13/07/2022,PE142658,373.82,0.00,Gas Charges for the period 01/06/22-30/06/22,Gas,22001
Wyre Council,http://opendatacommunities.org/doc/district-council/wyre,30/07/2022,People and Places,Support Services,135B,AvantiGas ON Ltd,13/07/2022,PE142660,1224.55,0.00,Gas Charges for the period 01/06/22-30/06/22,Gas,22001
Wyre Council,http://opendatacommunities.org/doc/district-council/wyre,30/07/2022,People and Places,Planning and Development Servs,132C,AvantiGas ON Ltd,13/07/2022,PE142657,49.62,0.00,Gas Charges for the period 01/06/22-30/06/22,Gas,22001
Wyre Council,http://opendatacommunities.org/doc/district-council/wyre,30/07/2022,People and Places,Planning and Development Servs,132C,AvantiGas ON Ltd,13/07/2022,PE142659,1388.99,0.00,Gas Charges for the period 01/06/22-30/06/22,Gas,22001
Wyre Council,http://opendatacommunities.org/doc/district-council/wyre,30/07/2022,Resources,Housing General Fund,134A,Creative Support LTD,04/07/2022,RS142496,7025.50,0.00,Contract Fees - Turning the Tide Tenancy Support Fees - 01/04 - 30/06,Homelessness Tenancy Support,64010
Wyre Council,http://opendatacommunities.org/doc/district-council/wyre,30/07/2022,People and Places,Environmental Services,132B,Poulton Pets LTD,12/07/2022,PE142690,1461.00,0.00,Provision of stray dog kennelling service 2022/23,Impounded Dogs Costs,46807
Wyre Council,http://opendatacommunities.org/doc/district-council/wyre,30/07/2022,Resources,Support Services,135B,Blackpool Council,06/07/2022,RS142589,3000.00,0.00,Gigabit Internet Connection to Corpse Road Depot 01/04/22-31/03/23,Internet and Telephone Charges,43503
Wyre Council,http://opendatacommunities.org/doc/district-council/wyre,30/07/2022,Resources,Support Services,135B,Nominet UK,21/07/2022,RS142903,765.94,0.00,Quarterly charge for PSN DNS service Jan - March 2022,Internet and Telephone Charges,43503
Wyre Council,http://opendatacommunities.org/doc/district-council/wyre,30/07/2022,Resources,Support Services,135B,Nominet UK,21/07/2022,RS142910,765.94,0.00,Quarterly charge for PSN DNS service Oct- Dec 2021,Internet and Telephone Charges,43503
Wyre Council,http://opendatacommunities.org/doc/district-council/wyre,30/07/2022,Resources,Support Services,135B,Nominet UK,21/07/2022,RS142902,765.94,0.00,Quarterly charge for PSN DNS service July - Sept 2021,Internet and Telephone Charges,43503
Wyre Council,http://opendatacommunities.org/doc/district-council/wyre,30/07/2022,Resources,Support Services,135B,Vodafone LTD,25/07/2022,RS142914,404.49,0.00,MSP Dedicated Access bearer 01/04/22 - 30/06/22,Internet and Telephone Charges,43503
Wyre Council,http://opendatacommunities.org/doc/district-council/wyre,30/07/2022,Resources,Support Services,135B,Vodafone LTD,25/07/2022,RS142914,199.98,0.00,PSN Direct Network Service Provider 01/04/22 - 30/06/22,Internet and Telephone Charges,43503
Wyre Council,http://opendatacommunities.org/doc/district-council/wyre,30/07/2022,Resources,Support Services,135B,THE NETWORKING PEOPLE (TNP) LTD,22/07/2022,RS142865,290.67,0.00,Wholesale FTTC Connection to YMCA Fleetwood Leisure Centre Install - FY7 6HF,Internet and Telephone Charges,43503
Wyre Council,http://opendatacommunities.org/doc/district-council/wyre,30/07/2022,Resources,Support Services,135B,THE NETWORKING PEOPLE (TNP) LTD,22/07/2022,RS142865,402.23,0.00,Wholesale FTTC Connection to YMCA Fleetwood Leisure Centre - FY7 6HF - Rental 15/02/2022 - 14/02/2023,Internet and Telephone Charges,43503
Wyre Council,http://opendatacommunities.org/doc/district-council/wyre,30/07/2022,Resources,Central Services to the Public,131C,Lancashire County Council,20/07/2022,RS142888,672.00,0.00,Wyre Council Con29 Searches for June 2022 - 42 @ 16.00 each,L.C.C. Search Fees,42700
Wyre Council,http://opendatacommunities.org/doc/district-council/wyre,30/07/2022,Resources,Central Services to the Public,131C,Lancashire County Council,20/07/2022,RS142887,864.00,0.00,Wyre Council Con29 Searches for May 2022 - 54 @ 16.00 each,L.C.C. Search Fees,42700
Wyre Council,http://opendatacommunities.org/doc/district-council/wyre,30/07/2022,Resources,Central Services to the Public,131C,Lancashire County Council,20/07/2022,RS142886,880.00,0.00,Wyre Council Con29 Searches for April 2022 - 55 @ 16.00 each,L.C.C. Search Fees,42700
Wyre Council,http://opendatacommunities.org/doc/district-council/wyre,30/07/2022,Resources,Central Services to the Public,131C,Lancashire County Council,20/07/2022,RS142885,558.00,0.00,Wyre Council Con29 Searches for March 2022 - 36 @ 15.50 each,L.C.C. Search Fees,42700
Wyre Council,http://opendatacommunities.org/doc/district-council/wyre,30/07/2022,Resources,Support Services,135B,Zurich Municipal,12/07/2022,RS142608,1446.49,0.00,Annual insurance renewal  Combined Policy - QLA 07H081-0083-00 Effective 30/6/22 to 29/6/23 Premium including IPT,Land Charges Insurance,46002
Wyre Council,http://opendatacommunities.org/doc/district-council/wyre,30/07/2022,Resources,Support Services,135B,Forbes Solicitors,11/07/2022,RS142666,3295.00,0.00,Professional fee  25/05/22 - 28/06/22,Legal Fees,46300
Wyre Council,http://opendatacommunities.org/doc/district-council/wyre,30/07/2022,Resources,Support Services,135B,Forbes Solicitors,01/07/2022,RS142492,35.00,0.00,Employment advice,Legal Fees,46300
Wyre Council,http://opendatacommunities.org/doc/district-council/wyre,30/07/2022,People and Places,Cultural and Related Services,132A,Lancashire County Council,27/07/2022,PE142986,200.00,0.00,Marine Hall - approved premises annual fee,Licences,46200
Wyre Council,http://opendatacommunities.org/doc/district-council/wyre,30/07/2022,People and Places,Planning and Development Servs,132C,M D Security,12/07/2022,PE142641,45.00,0.00,Call out to water damage at Fleetwood Market,Maintenance of Tools or Equipment,40102
Wyre Council,http://opendatacommunities.org/doc/district-council/wyre,30/07/2022,Resources,Parking Services,133F,VODAFONE LIMITED,05/07/2022,RS142509,27.00,0.00,Monthly Charges,Maintenance of Tools or Equipment,40102
Wyre Council,http://opendatacommunities.org/doc/district-council/wyre,30/07/2022,Resources,Parking Services,133F,VODAFONE LIMITED,01/07/2022,RS141680,27.00,0.00,Monthly Charges,Maintenance of Tools or Equipment,40102
Wyre Council,http://opendatacommunities.org/doc/district-council/wyre,30/07/2022,Resources,Parking Services,133F,VODAFONE LIMITED,01/07/2022,RS141097,27.00,0.00,Monthly Charges,Maintenance of Tools or Equipment,40102
Wyre Council,http://opendatacommunities.org/doc/district-council/wyre,30/07/2022,People and Places,Highways,133B,Dr Tree Surgeons,25/07/2022,PE142948,330.00,0.00,Quote Number: 587Quote Date: 22nd Jul `22Valid For: 30 DaysAccount: WYRE01Quote Ref: Thornton Grass Verge1 The remove of two Sorbs trees. 250.00 1 Stump grind stumps. 80.00 Total Net Amount: 330.00VAT @ 20%: 66.00Quote Total: 396.,Maintenance of Trees and Shrubs,28006
Wyre Council,http://opendatacommunities.org/doc/district-council/wyre,30/07/2022,People and Places,Environmental Services,132B,Andrew Signs LTD,20/07/2022,PE142889,545.00,0.00,various signs  already received on invoice 1241,Materials and Consumables,42002
Wyre Council,http://opendatacommunities.org/doc/district-council/wyre,30/07/2022,People and Places,Support Services,135B,EK Motors Factors LTD,11/07/2022,PE142616,165.00,0.00,PARTS,Materials and Consumables,42002
Wyre Council,http://opendatacommunities.org/doc/district-council/wyre,30/07/2022,People and Places,Support Services,135B,EK Motors Factors LTD,11/07/2022,PE142612,8.00,0.00,PARTS,Materials and Consumables,42002
Wyre Council,http://opendatacommunities.org/doc/district-council/wyre,30/07/2022,People and Places,Support Services,135B, Systematic Design And Print LTD,11/07/2022,PE142439,465.00,0.00,DDVI Defect Report Books - Electric Vehicles,Materials and Consumables,42002
Wyre Council,http://opendatacommunities.org/doc/district-council/wyre,30/07/2022,People and Places,Support Services,135B, Systematic Design And Print LTD,11/07/2022,PE142438,465.00,0.00,DDVI Defect Report Books Over 3.5 tonne,Materials and Consumables,42002
Wyre Council,http://opendatacommunities.org/doc/district-council/wyre,30/07/2022,People and Places,Support Services,135B, Systematic Design And Print LTD,11/07/2022,PE142437,935.00,0.00,DDVI Defect Report Books Under 3.5 tonne,Materials and Consumables,42002
Wyre Council,http://opendatacommunities.org/doc/district-council/wyre,30/07/2022,People and Places,Environmental Services,132B,John H Mayor And Sons LTD,06/07/2022,PE142565,4700.00,0.00,100 -9 X 3 timbers at 5.4 mtrs long delivered to Chatsworth depot,Materials and Consumables,42002
Wyre Council,http://opendatacommunities.org/doc/district-council/wyre,30/07/2022,People and Places,Support Services,135B,Walkers Nurseries & Plant Centre,15/07/2022,PE142842,562.20,0.00,"Supply and deliver as per email from jane Ferguson  3000 Geranium Pink Passion Mix (0.155 each normally 31p)  465.00 total 162 mile deliver (60p per mile)  97.20 Total cost 562.20 (excl. VAT)   Delivery to Wyre Council, Copse Road Depot, Copse Road, F",Materials and Consumables,42002
Wyre Council,http://opendatacommunities.org/doc/district-council/wyre,30/07/2022,People and Places,Support Services,135B,George Hewitt Fabrications,14/07/2022,PE142828,612.45,0.00,Reference Quotation � #7 Dated 25/05/2022   To Supply 2 X Goal Post Holders  1400mm tall with base plates � Painted Black    Materials -  450.00 + vat Labour 162.45 + vat,Materials and Consumables,42002
Wyre Council,http://opendatacommunities.org/doc/district-council/wyre,30/07/2022,Resources,Corporate and Democratic Core,131A,Barry Friar,25/07/2022,RS142957,500.00,0.00,To photograph the Mayor of Wyre 2020/22 Cllr Andrea Kay and provide one set of 7 x 5 proofs one 20 x 16 canvas portrait in gold frame with plaque.,Mayoral Hospitality,44401
Wyre Council,http://opendatacommunities.org/doc/district-council/wyre,30/07/2022,Resources,Housing General Fund,134A,Mobility Care Services,12/07/2022,RS142729,550.00,0.00,REDACT,Minor Adaptations,45261
Wyre Council,http://opendatacommunities.org/doc/district-council/wyre,30/07/2022,Resources,Housing General Fund,134A,Mobility Care Services,12/07/2022,RS142710,132.00,0.00,REDACT,Minor Adaptations,45261
Wyre Council,http://opendatacommunities.org/doc/district-council/wyre,30/07/2022,Resources,Housing General Fund,134A,Mobility Care Services,12/07/2022,RS142718,441.00,0.00,REDACT,Minor Adaptations,45261
Wyre Council,http://opendatacommunities.org/doc/district-council/wyre,30/07/2022,Resources,Housing General Fund,134A,Mobility Care Services,12/07/2022,RS142717,154.00,0.00,REDACT,Minor Adaptations,45261
Wyre Council,http://opendatacommunities.org/doc/district-council/wyre,30/07/2022,Resources,Housing General Fund,134A,Mobility Care Services,12/07/2022,RS142716,160.00,0.00,REDACT,Minor Adaptations,45261
Wyre Council,http://opendatacommunities.org/doc/district-council/wyre,30/07/2022,Resources,Housing General Fund,134A,Mobility Care Services,12/07/2022,RS142715,85.00,0.00,REDACT,Minor Adaptations,45261
Wyre Council,http://opendatacommunities.org/doc/district-council/wyre,30/07/2022,Resources,Housing General Fund,134A,Mobility Care Services,12/07/2022,RS142714,880.00,0.00,REDACT,Minor Adaptations,45261
Wyre Council,http://opendatacommunities.org/doc/district-council/wyre,30/07/2022,Resources,Housing General Fund,134A,Mobility Care Services,12/07/2022,RS142713,133.00,0.00,REDACT,Minor Adaptations,45261
Wyre Council,http://opendatacommunities.org/doc/district-council/wyre,30/07/2022,Resources,Housing General Fund,134A,Mobility Care Services,12/07/2022,RS142712,265.00,0.00,REDACT,Minor Adaptations,45261
Wyre Council,http://opendatacommunities.org/doc/district-council/wyre,30/07/2022,Resources,Housing General Fund,134A,Mobility Care Services,12/07/2022,RS142711,198.00,0.00,REDACT,Minor Adaptations,45261
Wyre Council,http://opendatacommunities.org/doc/district-council/wyre,30/07/2022,Resources,Housing General Fund,134A,Mobility Care Services,12/07/2022,RS142728,133.00,0.00,REDACT,Minor Adaptations,45261
Wyre Council,http://opendatacommunities.org/doc/district-council/wyre,30/07/2022,Resources,Housing General Fund,134A,Mobility Care Services,12/07/2022,RS142727,180.00,0.00,REDACT,Minor Adaptations,45261
Wyre Council,http://opendatacommunities.org/doc/district-council/wyre,30/07/2022,Resources,Housing General Fund,134A,Mobility Care Services,12/07/2022,RS142726,308.00,0.00,REDACT,Minor Adaptations,45261
Wyre Council,http://opendatacommunities.org/doc/district-council/wyre,30/07/2022,Resources,Housing General Fund,134A,Mobility Care Services,12/07/2022,RS142725,75.00,0.00,REDACT,Minor Adaptations,45261
Wyre Council,http://opendatacommunities.org/doc/district-council/wyre,30/07/2022,Resources,Housing General Fund,134A,Mobility Care Services,12/07/2022,RS142724,45.00,0.00,REDACT,Minor Adaptations,45261
Wyre Council,http://opendatacommunities.org/doc/district-council/wyre,30/07/2022,Resources,Housing General Fund,134A,Mobility Care Services,12/07/2022,RS142723,560.00,0.00,REDACT,Minor Adaptations,45261
Wyre Council,http://opendatacommunities.org/doc/district-council/wyre,30/07/2022,Resources,Housing General Fund,134A,Mobility Care Services,12/07/2022,RS142722,441.00,0.00,REDACT,Minor Adaptations,45261
Wyre Council,http://opendatacommunities.org/doc/district-council/wyre,30/07/2022,Resources,Housing General Fund,134A,Mobility Care Services,12/07/2022,RS142721,308.00,0.00,REDACT,Minor Adaptations,45261
Wyre Council,http://opendatacommunities.org/doc/district-council/wyre,30/07/2022,Resources,Housing General Fund,134A,Mobility Care Services,12/07/2022,RS142719,70.00,0.00,REDACT,Minor Adaptations,45261
Wyre Council,http://opendatacommunities.org/doc/district-council/wyre,30/07/2022,Resources,Housing General Fund,134A,Mobility Care Services,12/07/2022,RS142720,140.00,0.00,REDACT,Minor Adaptations,45261
Wyre Council,http://opendatacommunities.org/doc/district-council/wyre,30/07/2022,Resources,Housing General Fund,134A,J A DICKENS LIMITED,12/07/2022,RS142743,94.00,0.00,REDACT,Minor Adaptations,45261
Wyre Council,http://opendatacommunities.org/doc/district-council/wyre,30/07/2022,Resources,Housing General Fund,134A,J A DICKENS LIMITED,12/07/2022,RS142744,60.00,0.00,REDACT,Minor Adaptations,45261
Wyre Council,http://opendatacommunities.org/doc/district-council/wyre,30/07/2022,Resources,Housing General Fund,134A,J A DICKENS LIMITED,12/07/2022,RS142744,94.00,0.00,REDACT,Minor Adaptations,45261
Wyre Council,http://opendatacommunities.org/doc/district-council/wyre,30/07/2022,Resources,Housing General Fund,134A,J A DICKENS LIMITED,12/07/2022,RS142745,120.00,0.00,REDACT,Minor Adaptations,45261
Wyre Council,http://opendatacommunities.org/doc/district-council/wyre,30/07/2022,Resources,Housing General Fund,134A,J A DICKENS LIMITED,12/07/2022,RS142745,188.00,0.00,REDACT,Minor Adaptations,45261
Wyre Council,http://opendatacommunities.org/doc/district-council/wyre,30/07/2022,Resources,Housing General Fund,134A,J A DICKENS LIMITED,12/07/2022,RS142746,120.00,0.00,REDACT,Minor Adaptations,45261
Wyre Council,http://opendatacommunities.org/doc/district-council/wyre,30/07/2022,Resources,Housing General Fund,134A,J A DICKENS LIMITED,12/07/2022,RS142746,188.00,0.00,REDACT,Minor Adaptations,45261
Wyre Council,http://opendatacommunities.org/doc/district-council/wyre,30/07/2022,Resources,Housing General Fund,134A,J A DICKENS LIMITED,12/07/2022,RS142749,120.00,0.00,REDACT,Minor Adaptations,45261
Wyre Council,http://opendatacommunities.org/doc/district-council/wyre,30/07/2022,Resources,Housing General Fund,134A,J A DICKENS LIMITED,12/07/2022,RS142749,188.00,0.00,REDACT,Minor Adaptations,45261
Wyre Council,http://opendatacommunities.org/doc/district-council/wyre,30/07/2022,Resources,Housing General Fund,134A,J A DICKENS LIMITED,12/07/2022,RS142742,60.00,0.00,REDACT,Minor Adaptations,45261
Wyre Council,http://opendatacommunities.org/doc/district-council/wyre,30/07/2022,Resources,Housing General Fund,134A,J A DICKENS LIMITED,12/07/2022,RS142742,94.00,0.00,REDACT,Minor Adaptations,45261
Wyre Council,http://opendatacommunities.org/doc/district-council/wyre,30/07/2022,Resources,Housing General Fund,134A,J A DICKENS LIMITED,12/07/2022,RS142747,120.00,0.00,REDACT,Minor Adaptations,45261
Wyre Council,http://opendatacommunities.org/doc/district-council/wyre,30/07/2022,Resources,Housing General Fund,134A,J A DICKENS LIMITED,12/07/2022,RS142747,188.00,0.00,REDACT,Minor Adaptations,45261
Wyre Council,http://opendatacommunities.org/doc/district-council/wyre,30/07/2022,Resources,Housing General Fund,134A,J A DICKENS LIMITED,12/07/2022,RS142748,120.00,0.00,REDACT,Minor Adaptations,45261
Wyre Council,http://opendatacommunities.org/doc/district-council/wyre,30/07/2022,Resources,Housing General Fund,134A,J A DICKENS LIMITED,12/07/2022,RS142748,188.00,0.00,REDACT,Minor Adaptations,45261
Wyre Council,http://opendatacommunities.org/doc/district-council/wyre,30/07/2022,Resources,Housing General Fund,134A,J A DICKENS LIMITED,12/07/2022,RS142743,60.00,0.00,REDACT,Minor Adaptations,45261
Wyre Council,http://opendatacommunities.org/doc/district-council/wyre,30/07/2022,Resources,Housing General Fund,134A,J A DICKENS LIMITED,13/07/2022,RS142753,240.00,0.00,REDACT,Minor Adaptations,45261
Wyre Council,http://opendatacommunities.org/doc/district-council/wyre,30/07/2022,Resources,Housing General Fund,134A,J A DICKENS LIMITED,13/07/2022,RS142753,400.00,0.00,REDACT,Minor Adaptations,45261
Wyre Council,http://opendatacommunities.org/doc/district-council/wyre,30/07/2022,Resources,Housing General Fund,134A,J A DICKENS LIMITED,13/07/2022,RS142754,60.00,0.00,REDACT,Minor Adaptations,45261
Wyre Council,http://opendatacommunities.org/doc/district-council/wyre,30/07/2022,Resources,Housing General Fund,134A,J A DICKENS LIMITED,13/07/2022,RS142754,94.00,0.00,REDACT,Minor Adaptations,45261
Wyre Council,http://opendatacommunities.org/doc/district-council/wyre,30/07/2022,Resources,Housing General Fund,134A,J A DICKENS LIMITED,13/07/2022,RS142770,120.00,0.00,REDACT,Minor Adaptations,45261
Wyre Council,http://opendatacommunities.org/doc/district-council/wyre,30/07/2022,Resources,Housing General Fund,134A,J A DICKENS LIMITED,13/07/2022,RS142770,188.00,0.00,REDACT,Minor Adaptations,45261
Wyre Council,http://opendatacommunities.org/doc/district-council/wyre,30/07/2022,Resources,Housing General Fund,134A,J A DICKENS LIMITED,13/07/2022,RS142768,300.00,0.00,REDACT,Minor Adaptations,45261
Wyre Council,http://opendatacommunities.org/doc/district-council/wyre,30/07/2022,Resources,Housing General Fund,134A,J A DICKENS LIMITED,13/07/2022,RS142768,380.00,0.00,REDACT,Minor Adaptations,45261
Wyre Council,http://opendatacommunities.org/doc/district-council/wyre,30/07/2022,Resources,Housing General Fund,134A,J A DICKENS LIMITED,13/07/2022,RS142769,300.00,0.00,REDACT,Minor Adaptations,45261
Wyre Council,http://opendatacommunities.org/doc/district-council/wyre,30/07/2022,Resources,Housing General Fund,134A,J A DICKENS LIMITED,13/07/2022,RS142769,340.00,0.00,REDACT,Minor Adaptations,45261
Wyre Council,http://opendatacommunities.org/doc/district-council/wyre,30/07/2022,Resources,Housing General Fund,134A,J A DICKENS LIMITED,19/07/2022,RS142864,480.00,0.00,REDACT,Minor Adaptations,45261
Wyre Council,http://opendatacommunities.org/doc/district-council/wyre,30/07/2022,Resources,Housing General Fund,134A,J A DICKENS LIMITED,19/07/2022,RS142864,400.00,0.00,REDACT,Minor Adaptations,45261
Wyre Council,http://opendatacommunities.org/doc/district-council/wyre,30/07/2022,Resources,Housing General Fund,134A,J A DICKENS LIMITED,12/07/2022,RS142741,60.00,0.00,REDACT,Minor Adaptations,45261
Wyre Council,http://opendatacommunities.org/doc/district-council/wyre,30/07/2022,Resources,Housing General Fund,134A,J A DICKENS LIMITED,12/07/2022,RS142741,94.00,0.00,REDACT,Minor Adaptations,45261
Wyre Council,http://opendatacommunities.org/doc/district-council/wyre,30/07/2022,Resources,Housing General Fund,134A,J A DICKENS LIMITED,12/07/2022,RS142750,167.00,0.00,REDACT,Minor Adaptations,45261
Wyre Council,http://opendatacommunities.org/doc/district-council/wyre,30/07/2022,Resources,Housing General Fund,134A,J A DICKENS LIMITED,12/07/2022,RS142750,120.00,0.00,REDACT,Minor Adaptations,45261
Wyre Council,http://opendatacommunities.org/doc/district-council/wyre,30/07/2022,Resources,Housing General Fund,134A,J A DICKENS LIMITED,12/07/2022,RS142751,300.00,0.00,REDACT,Minor Adaptations,45261
Wyre Council,http://opendatacommunities.org/doc/district-council/wyre,30/07/2022,Resources,Housing General Fund,134A,J A DICKENS LIMITED,12/07/2022,RS142751,420.00,0.00,REDACT,Minor Adaptations,45261
Wyre Council,http://opendatacommunities.org/doc/district-council/wyre,30/07/2022,Resources,Current Assets,130B,SME HCI Ltd,13/07/2022,RS142793,2075.10,0.00,INVOICE NUMBER: 140159,Miscellaneous Debits,01600
Wyre Council,http://opendatacommunities.org/doc/district-council/wyre,30/07/2022,Resources,Support Services,135B,VODAFONE LIMITED,05/07/2022,RS142509,12.15,0.00,Monthly Charges,Mobile Devices,43103
Wyre Council,http://opendatacommunities.org/doc/district-council/wyre,30/07/2022,Resources,Support Services,135B,VODAFONE LIMITED,01/07/2022,RS141097,12.00,0.00,Monthly Charges,Mobile Devices,43103
Wyre Council,http://opendatacommunities.org/doc/district-council/wyre,30/07/2022,Resources,Support Services,135B,VODAFONE LIMITED,01/07/2022,RS141680,12.00,0.00,Monthly Charges,Mobile Devices,43103
Wyre Council,http://opendatacommunities.org/doc/district-council/wyre,30/07/2022,Resources,Environmental Services,132B,VODAFONE LIMITED,05/07/2022,RS142509,37.00,0.00,Monthly Charges,Mobile Devices,43103
Wyre Council,http://opendatacommunities.org/doc/district-council/wyre,30/07/2022,Resources,Environmental Services,132B,VODAFONE LIMITED,01/07/2022,RS141097,37.00,0.00,Monthly Charges,Mobile Devices,43103
Wyre Council,http://opendatacommunities.org/doc/district-council/wyre,30/07/2022,Resources,Environmental Services,132B,VODAFONE LIMITED,01/07/2022,RS141680,37.00,0.00,Monthly Charges,Mobile Devices,43103
Wyre Council,http://opendatacommunities.org/doc/district-council/wyre,30/07/2022,Resources,Housing General Fund,134A,VODAFONE LIMITED,01/07/2022,RS141680,64.00,0.00,Monthly Charges,Mobile Devices,43103
Wyre Council,http://opendatacommunities.org/doc/district-council/wyre,30/07/2022,Resources,Housing General Fund,134A,VODAFONE LIMITED,01/07/2022,RS141097,87.22,0.00,Monthly Charges,Mobile Devices,43103
Wyre Council,http://opendatacommunities.org/doc/district-council/wyre,30/07/2022,Resources,Housing General Fund,134A,VODAFONE LIMITED,05/07/2022,RS142509,71.67,0.00,Monthly Charges,Mobile Devices,43103
Wyre Council,http://opendatacommunities.org/doc/district-council/wyre,30/07/2022,Resources,Housing General Fund,134A,VODAFONE LIMITED,05/07/2022,RS142509,4.00,0.00,Monthly Charges,Mobile Devices,43103
Wyre Council,http://opendatacommunities.org/doc/district-council/wyre,30/07/2022,Resources,Housing General Fund,134A,VODAFONE LIMITED,01/07/2022,RS141680,4.00,0.00,Monthly Charges,Mobile Devices,43103
Wyre Council,http://opendatacommunities.org/doc/district-council/wyre,30/07/2022,Resources,Housing General Fund,134A,VODAFONE LIMITED,01/07/2022,RS141097,4.00,0.00,Monthly Charges,Mobile Devices,43103
Wyre Council,http://opendatacommunities.org/doc/district-council/wyre,30/07/2022,Resources,Support Services,135B,VODAFONE LIMITED,01/07/2022,RS141097,42.97,0.00,Monthly Charges,Mobile Devices,43103
Wyre Council,http://opendatacommunities.org/doc/district-council/wyre,30/07/2022,Resources,Support Services,135B,VODAFONE LIMITED,01/07/2022,RS141680,36.00,0.00,Monthly Charges,Mobile Devices,43103
Wyre Council,http://opendatacommunities.org/doc/district-council/wyre,30/07/2022,Resources,Corporate and Democratic Core,131A,VODAFONE LIMITED,05/07/2022,RS142509,12.00,0.00,Monthly Charges,Mobile Devices,43103
Wyre Council,http://opendatacommunities.org/doc/district-council/wyre,30/07/2022,Resources,Corporate and Democratic Core,131A,VODAFONE LIMITED,01/07/2022,RS141680,12.00,0.00,Monthly Charges,Mobile Devices,43103
Wyre Council,http://opendatacommunities.org/doc/district-council/wyre,30/07/2022,Resources,Corporate and Democratic Core,131A,VODAFONE LIMITED,01/07/2022,RS141097,12.00,0.00,Monthly Charges,Mobile Devices,43103
Wyre Council,http://opendatacommunities.org/doc/district-council/wyre,30/07/2022,Resources,Support Services,135B,VODAFONE LIMITED,05/07/2022,RS142509,12.00,0.00,Monthly Charges,Mobile Devices,43103
Wyre Council,http://opendatacommunities.org/doc/district-council/wyre,30/07/2022,Resources,Support Services,135B,VODAFONE LIMITED,05/07/2022,RS142509,12.00,0.00,Monthly Charges,Mobile Devices,43103
Wyre Council,http://opendatacommunities.org/doc/district-council/wyre,30/07/2022,Resources,Support Services,135B,VODAFONE LIMITED,01/07/2022,RS141680,12.00,0.00,Monthly Charges,Mobile Devices,43103
Wyre Council,http://opendatacommunities.org/doc/district-council/wyre,30/07/2022,Resources,Support Services,135B,VODAFONE LIMITED,01/07/2022,RS141097,12.00,0.00,Monthly Charges,Mobile Devices,43103
Wyre Council,http://opendatacommunities.org/doc/district-council/wyre,30/07/2022,Resources,Cultural and Related Services,132A,VODAFONE LIMITED,01/07/2022,RS141097,33.00,0.00,Monthly Charges,Mobile Devices,43103
Wyre Council,http://opendatacommunities.org/doc/district-council/wyre,30/07/2022,Resources,Cultural and Related Services,132A,VODAFONE LIMITED,01/07/2022,RS141680,33.00,0.00,Monthly Charges,Mobile Devices,43103
Wyre Council,http://opendatacommunities.org/doc/district-council/wyre,30/07/2022,Resources,Cultural and Related Services,132A,VODAFONE LIMITED,05/07/2022,RS142509,33.00,0.00,Monthly Charges,Mobile Devices,43103
Wyre Council,http://opendatacommunities.org/doc/district-council/wyre,30/07/2022,Resources,Support Services,135B,VODAFONE LIMITED,01/07/2022,RS141097,12.00,0.00,Monthly Charges,Mobile Devices,43103
Wyre Council,http://opendatacommunities.org/doc/district-council/wyre,30/07/2022,Resources,Support Services,135B,VODAFONE LIMITED,01/07/2022,RS141680,12.00,0.00,Monthly Charges,Mobile Devices,43103
Wyre Council,http://opendatacommunities.org/doc/district-council/wyre,30/07/2022,Resources,Cultural and Related Services,132A,VODAFONE LIMITED,01/07/2022,RS141680,33.00,0.00,Monthly Charges,Mobile Devices,43103
Wyre Council,http://opendatacommunities.org/doc/district-council/wyre,30/07/2022,Resources,Cultural and Related Services,132A,VODAFONE LIMITED,01/07/2022,RS141097,33.00,0.00,Monthly Charges,Mobile Devices,43103
Wyre Council,http://opendatacommunities.org/doc/district-council/wyre,30/07/2022,Resources,Cultural and Related Services,132A,VODAFONE LIMITED,05/07/2022,RS142509,33.00,0.00,Monthly Charges,Mobile Devices,43103
Wyre Council,http://opendatacommunities.org/doc/district-council/wyre,30/07/2022,Resources,Support Services,135B,VODAFONE LIMITED,01/07/2022,RS141680,217.00,0.00,Monthly Charges,Mobile Devices,43103
Wyre Council,http://opendatacommunities.org/doc/district-council/wyre,30/07/2022,Resources,Support Services,135B,VODAFONE LIMITED,01/07/2022,RS141097,196.61,0.00,Monthly Charges,Mobile Devices,43103
Wyre Council,http://opendatacommunities.org/doc/district-council/wyre,30/07/2022,Resources,Support Services,135B,VODAFONE LIMITED,01/07/2022,RS141097,12.00,0.00,Monthly Charges,Mobile Devices,43103
Wyre Council,http://opendatacommunities.org/doc/district-council/wyre,30/07/2022,Resources,Support Services,135B,VODAFONE LIMITED,05/07/2022,RS142509,205.00,0.00,Monthly Charges,Mobile Devices,43103
Wyre Council,http://opendatacommunities.org/doc/district-council/wyre,30/07/2022,Resources,Support Services,135B,VODAFONE LIMITED,05/07/2022,RS142509,12.00,0.00,Monthly Charges,Mobile Devices,43103
Wyre Council,http://opendatacommunities.org/doc/district-council/wyre,30/07/2022,Resources,Support Services,135B,VODAFONE LIMITED,05/07/2022,RS142509,16.00,0.00,Monthly Charges,Mobile Devices,43103
Wyre Council,http://opendatacommunities.org/doc/district-council/wyre,30/07/2022,Resources,Support Services,135B,VODAFONE LIMITED,01/07/2022,RS141097,16.00,0.00,Monthly Charges,Mobile Devices,43103
Wyre Council,http://opendatacommunities.org/doc/district-council/wyre,30/07/2022,Resources,Support Services,135B,VODAFONE LIMITED,01/07/2022,RS141680,16.00,0.00,Monthly Charges,Mobile Devices,43103
Wyre Council,http://opendatacommunities.org/doc/district-council/wyre,30/07/2022,Resources,Support Services,135B,VODAFONE LIMITED,05/07/2022,RS142509,269.66,0.00,Monthly Charges,Mobile Devices,43103
Wyre Council,http://opendatacommunities.org/doc/district-council/wyre,30/07/2022,Resources,Support Services,135B,VODAFONE LIMITED,05/07/2022,RS142509,12.00,0.00,Monthly Charges,Mobile Devices,43103
Wyre Council,http://opendatacommunities.org/doc/district-council/wyre,30/07/2022,Resources,Support Services,135B,VODAFONE LIMITED,01/07/2022,RS141097,302.75,0.00,Monthly Charges,Mobile Devices,43103
Wyre Council,http://opendatacommunities.org/doc/district-council/wyre,30/07/2022,Resources,Support Services,135B,VODAFONE LIMITED,01/07/2022,RS141097,12.00,0.00,Monthly Charges,Mobile Devices,43103
Wyre Council,http://opendatacommunities.org/doc/district-council/wyre,30/07/2022,Resources,Support Services,135B,VODAFONE LIMITED,01/07/2022,RS141680,310.00,0.00,Monthly Charges,Mobile Devices,43103
Wyre Council,http://opendatacommunities.org/doc/district-council/wyre,30/07/2022,Resources,Support Services,135B,VODAFONE LIMITED,01/07/2022,RS141097,78.27,0.00,Monthly Charges,Mobile Devices,43103
Wyre Council,http://opendatacommunities.org/doc/district-council/wyre,30/07/2022,Resources,Support Services,135B,VODAFONE LIMITED,01/07/2022,RS141680,64.36,0.00,Monthly Charges,Mobile Devices,43103
Wyre Council,http://opendatacommunities.org/doc/district-council/wyre,30/07/2022,Resources,Support Services,135B,VODAFONE LIMITED,01/07/2022,RS141097,12.00,0.00,Monthly Charges,Mobile Devices,43103
Wyre Council,http://opendatacommunities.org/doc/district-council/wyre,30/07/2022,Resources,Support Services,135B,VODAFONE LIMITED,05/07/2022,RS142509,12.00,0.00,Monthly Charges,Mobile Devices,43103
Wyre Council,http://opendatacommunities.org/doc/district-council/wyre,30/07/2022,Resources,Support Services,135B,VODAFONE LIMITED,05/07/2022,RS142509,52.00,0.00,Monthly Charges,Mobile Devices,43103
Wyre Council,http://opendatacommunities.org/doc/district-council/wyre,30/07/2022,Resources,Cultural and Related Services,132A,VODAFONE LIMITED,01/07/2022,RS141680,4.00,0.00,Monthly Charges,Mobile Devices,43103
Wyre Council,http://opendatacommunities.org/doc/district-council/wyre,30/07/2022,Resources,Cultural and Related Services,132A,VODAFONE LIMITED,01/07/2022,RS141097,4.00,0.00,Monthly Charges,Mobile Devices,43103
Wyre Council,http://opendatacommunities.org/doc/district-council/wyre,30/07/2022,Resources,Cultural and Related Services,132A,VODAFONE LIMITED,05/07/2022,RS142509,4.00,0.00,Monthly Charges,Mobile Devices,43103
Wyre Council,http://opendatacommunities.org/doc/district-council/wyre,30/07/2022,Resources,Support Services,135B,VODAFONE LIMITED,05/07/2022,RS142509,117.00,0.00,Monthly Charges,Mobile Devices,43103
Wyre Council,http://opendatacommunities.org/doc/district-council/wyre,30/07/2022,Resources,Support Services,135B,VODAFONE LIMITED,01/07/2022,RS141097,117.30,0.00,Monthly Charges,Mobile Devices,43103
Wyre Council,http://opendatacommunities.org/doc/district-council/wyre,30/07/2022,Resources,Support Services,135B,VODAFONE LIMITED,01/07/2022,RS141680,117.20,0.00,Monthly Charges,Mobile Devices,43103
Wyre Council,http://opendatacommunities.org/doc/district-council/wyre,30/07/2022,Resources,Support Services,135B,VODAFONE LIMITED,01/07/2022,RS141680,150.00,0.00,Monthly Charges,Mobile Devices,43103
Wyre Council,http://opendatacommunities.org/doc/district-council/wyre,30/07/2022,Resources,Support Services,135B,VODAFONE LIMITED,01/07/2022,RS141097,164.11,0.00,Monthly Charges,Mobile Devices,43103
Wyre Council,http://opendatacommunities.org/doc/district-council/wyre,30/07/2022,Resources,Support Services,135B,VODAFONE LIMITED,05/07/2022,RS142509,134.00,0.00,Monthly Charges,Mobile Devices,43103
Wyre Council,http://opendatacommunities.org/doc/district-council/wyre,30/07/2022,Resources,Support Services,135B,VODAFONE LIMITED,05/07/2022,RS142509,12.00,0.00,Monthly Charges,Mobile Devices,43103
Wyre Council,http://opendatacommunities.org/doc/district-council/wyre,30/07/2022,Resources,Support Services,135B,VODAFONE LIMITED,01/07/2022,RS141680,8.00,0.00,Monthly Charges,Mobile Devices,43103
Wyre Council,http://opendatacommunities.org/doc/district-council/wyre,30/07/2022,Resources,Support Services,135B,VODAFONE LIMITED,01/07/2022,RS141097,8.00,0.00,Monthly Charges,Mobile Devices,43103
Wyre Council,http://opendatacommunities.org/doc/district-council/wyre,30/07/2022,Resources,Support Services,135B,VODAFONE LIMITED,01/07/2022,RS141680,148.00,0.00,Monthly Charges,Mobile Devices,43103
Wyre Council,http://opendatacommunities.org/doc/district-council/wyre,30/07/2022,Resources,Support Services,135B,VODAFONE LIMITED,01/07/2022,RS141097,159.61,0.00,Monthly Charges,Mobile Devices,43103
Wyre Council,http://opendatacommunities.org/doc/district-council/wyre,30/07/2022,Resources,Support Services,135B,VODAFONE LIMITED,05/07/2022,RS142509,148.00,0.00,Monthly Charges,Mobile Devices,43103
Wyre Council,http://opendatacommunities.org/doc/district-council/wyre,30/07/2022,Resources,Support Services,135B,VODAFONE LIMITED,05/07/2022,RS142509,36.00,0.00,Monthly Charges,Mobile Devices,43103
Wyre Council,http://opendatacommunities.org/doc/district-council/wyre,30/07/2022,Resources,Support Services,135B,VODAFONE LIMITED,05/07/2022,RS142509,217.15,0.00,Monthly Charges,Mobile Devices,43103
Wyre Council,http://opendatacommunities.org/doc/district-council/wyre,30/07/2022,Resources,Support Services,135B,VODAFONE LIMITED,01/07/2022,RS141680,217.00,0.00,Monthly Charges,Mobile Devices,43103
Wyre Council,http://opendatacommunities.org/doc/district-council/wyre,30/07/2022,Resources,Support Services,135B,VODAFONE LIMITED,01/07/2022,RS141097,223.97,0.00,Monthly Charges,Mobile Devices,43103
Wyre Council,http://opendatacommunities.org/doc/district-council/wyre,30/07/2022,Resources,Support Services,135B,VODAFONE LIMITED,01/07/2022,RS141680,57.00,0.00,Monthly Charges,Mobile Devices,43103
Wyre Council,http://opendatacommunities.org/doc/district-council/wyre,30/07/2022,Resources,Support Services,135B,VODAFONE LIMITED,01/07/2022,RS141097,57.00,0.00,Monthly Charges,Mobile Devices,43103
Wyre Council,http://opendatacommunities.org/doc/district-council/wyre,30/07/2022,Resources,Support Services,135B,VODAFONE LIMITED,05/07/2022,RS142509,57.00,0.00,Monthly Charges,Mobile Devices,43103
Wyre Council,http://opendatacommunities.org/doc/district-council/wyre,30/07/2022,Resources,Support Services,135B,VODAFONE LIMITED,05/07/2022,RS142509,49.00,0.00,Monthly Charges,Mobile Devices,43103
Wyre Council,http://opendatacommunities.org/doc/district-council/wyre,30/07/2022,Resources,Support Services,135B,VODAFONE LIMITED,01/07/2022,RS141097,49.00,0.00,Monthly Charges,Mobile Devices,43103
Wyre Council,http://opendatacommunities.org/doc/district-council/wyre,30/07/2022,Resources,Support Services,135B,VODAFONE LIMITED,01/07/2022,RS141680,49.00,0.00,Monthly Charges,Mobile Devices,43103
Wyre Council,http://opendatacommunities.org/doc/district-council/wyre,30/07/2022,Resources,Support Services,135B,VODAFONE LIMITED,01/07/2022,RS141680,12.00,0.00,Monthly Charges,Mobile Devices,43103
Wyre Council,http://opendatacommunities.org/doc/district-council/wyre,30/07/2022,Resources,Support Services,135B,VODAFONE LIMITED,01/07/2022,RS141097,12.00,0.00,Monthly Charges,Mobile Devices,43103
Wyre Council,http://opendatacommunities.org/doc/district-council/wyre,30/07/2022,Resources,Support Services,135B,VODAFONE LIMITED,05/07/2022,RS142509,12.00,0.00,Monthly Charges,Mobile Devices,43103
Wyre Council,http://opendatacommunities.org/doc/district-council/wyre,30/07/2022,Resources,Support Services,135B,VODAFONE LIMITED,05/07/2022,RS142509,114.00,0.00,Monthly Charges,Mobile Devices,43103
Wyre Council,http://opendatacommunities.org/doc/district-council/wyre,30/07/2022,Resources,Support Services,135B,VODAFONE LIMITED,01/07/2022,RS141097,125.61,0.00,Monthly Charges,Mobile Devices,43103
Wyre Council,http://opendatacommunities.org/doc/district-council/wyre,30/07/2022,Resources,Support Services,135B,VODAFONE LIMITED,01/07/2022,RS141680,114.00,0.00,Monthly Charges,Mobile Devices,43103
Wyre Council,http://opendatacommunities.org/doc/district-council/wyre,30/07/2022,Resources,Environmental Services,132B,VODAFONE LIMITED,05/07/2022,RS142509,117.00,0.00,Monthly Charges,Mobile Devices,43103
Wyre Council,http://opendatacommunities.org/doc/district-council/wyre,30/07/2022,Resources,Environmental Services,132B,VODAFONE LIMITED,01/07/2022,RS141680,117.00,0.00,Monthly Charges,Mobile Devices,43103
Wyre Council,http://opendatacommunities.org/doc/district-council/wyre,30/07/2022,Resources,Environmental Services,132B,VODAFONE LIMITED,01/07/2022,RS141097,117.00,0.00,Monthly Charges,Mobile Devices,43103
Wyre Council,http://opendatacommunities.org/doc/district-council/wyre,30/07/2022,Resources,Support Services,135B,VODAFONE LIMITED,05/07/2022,RS142509,14.07,0.00,Monthly Charges,Mobile Devices,43103
Wyre Council,http://opendatacommunities.org/doc/district-council/wyre,30/07/2022,Resources,Central Services to the Public,131C,VODAFONE LIMITED,01/07/2022,RS141097,12.00,0.00,Monthly Charges,Mobile Devices,43103
Wyre Council,http://opendatacommunities.org/doc/district-council/wyre,30/07/2022,Resources,Central Services to the Public,131C,VODAFONE LIMITED,01/07/2022,RS141680,12.00,0.00,Monthly Charges,Mobile Devices,43103
Wyre Council,http://opendatacommunities.org/doc/district-council/wyre,30/07/2022,Resources,Central Services to the Public,131C,VODAFONE LIMITED,05/07/2022,RS142509,12.00,0.00,Monthly Charges,Mobile Devices,43103
Wyre Council,http://opendatacommunities.org/doc/district-council/wyre,30/07/2022,Resources,Central Services to the Public,131C,VODAFONE LIMITED,05/07/2022,RS142509,12.00,0.00,Monthly Charges,Mobile Devices,43103
Wyre Council,http://opendatacommunities.org/doc/district-council/wyre,30/07/2022,Resources,Central Services to the Public,131C,VODAFONE LIMITED,01/07/2022,RS141097,12.00,0.00,Monthly Charges,Mobile Devices,43103
Wyre Council,http://opendatacommunities.org/doc/district-council/wyre,30/07/2022,Resources,Central Services to the Public,131C,VODAFONE LIMITED,01/07/2022,RS141097,7.87,0.00,Monthly Charges,Mobile Devices,43103
Wyre Council,http://opendatacommunities.org/doc/district-council/wyre,30/07/2022,Resources,Central Services to the Public,131C,VODAFONE LIMITED,01/07/2022,RS141680,4.00,0.00,Monthly Charges,Mobile Devices,43103
Wyre Council,http://opendatacommunities.org/doc/district-council/wyre,30/07/2022,Resources,Central Services to the Public,131C,VODAFONE LIMITED,01/07/2022,RS141680,12.00,0.00,Monthly Charges,Mobile Devices,43103
Wyre Council,http://opendatacommunities.org/doc/district-council/wyre,30/07/2022,Resources,Support Services,135B,VODAFONE LIMITED,05/07/2022,RS142509,85.00,0.00,Monthly Charges,Mobile Devices,43103
Wyre Council,http://opendatacommunities.org/doc/district-council/wyre,30/07/2022,Resources,Support Services,135B,VODAFONE LIMITED,01/07/2022,RS141680,85.00,0.00,Monthly Charges,Mobile Devices,43103
Wyre Council,http://opendatacommunities.org/doc/district-council/wyre,30/07/2022,Resources,Support Services,135B,VODAFONE LIMITED,01/07/2022,RS141097,118.69,0.00,Monthly Charges,Mobile Devices,43103
Wyre Council,http://opendatacommunities.org/doc/district-council/wyre,30/07/2022,People and Places,Highways,133B,Andrew Signs LTD,20/07/2022,PE142889,290.50,0.00,various signs  already received on invoice 1241,Naming of Streets,28023
Wyre Council,http://opendatacommunities.org/doc/district-council/wyre,30/07/2022,Resources,Housing General Fund,134A,New Progress Housing Association,25/07/2022,RS141581,4406.01,0.00,Control Centre Monitoring - 01/04/2022 - 31/03/2023,New Progress - Out of Hours Service,56005
Wyre Council,http://opendatacommunities.org/doc/district-council/wyre,30/07/2022,Finance,Current Assets,130B,,14/07/2022,WPST00063503,2555.51,0.00,nndr refunds 8/7,NNDR Refunds,01200
Wyre Council,http://opendatacommunities.org/doc/district-council/wyre,30/07/2022,Finance,Current Assets,130B,,13/07/2022,WPST00063503,2555.51,0.00,nndr refunds 8/7,NNDR Refunds,01200
Wyre Council,http://opendatacommunities.org/doc/district-council/wyre,30/07/2022,Finance,Current Assets,130B,,07/07/2022,WPST00062665,1062.09,0.00,nndr refunds 1/7,NNDR Refunds,01200
Wyre Council,http://opendatacommunities.org/doc/district-council/wyre,30/07/2022,Finance,Collection Fund Revenue Accts,138A,DEPARTMENT FOR COMMUNITIES AND LOCAL GOVERNMENT,22/07/2022,WPST00064581,974709.00,0.00,DLUHC - Business Rates Central Share19/7,NNDR Tariff to Government,54000
Wyre Council,http://opendatacommunities.org/doc/district-council/wyre,30/07/2022,Finance,General Fund below the line,136A,DEPARTMENT FOR COMMUNITIES AND LOCAL GOVERNMENT,22/07/2022,WPST00064579,615375.00,0.00,RVBC 19/7,NNDR Tariff to Government,54000
Wyre Council,http://opendatacommunities.org/doc/district-council/wyre,30/07/2022,People and Places,Support Services,135B,People Asset Management LTD,28/07/2022,PE143013,990.08,0.00,Monthly Occupational Health Service Charge,Occupational Health Fees,18007
Wyre Council,http://opendatacommunities.org/doc/district-council/wyre,30/07/2022,Resources,Support Services,135B,People Asset Management LTD,27/07/2022,RS142478,990.08,0.00,Monthly Occupational Health Service Charge,Occupational Health Fees,18007
Wyre Council,http://opendatacommunities.org/doc/district-council/wyre,30/07/2022,Resources,Support Services,135B,Karen Openshaw Consultancy,28/07/2022,RS143007,520.00,0.00,To provision of Listening Ear and Mindfulness sessions 1 Apr 2022 - 31 March 2023,Occupational Health Fees,18007
Wyre Council,http://opendatacommunities.org/doc/district-council/wyre,30/07/2022,Resources,Support Services,135B,Karen Openshaw Consultancy,05/07/2022,RS142545,520.00,0.00,To provision of Listening Ear and Mindfulness sessions 1 Apr 2022 - 31 March 2023,Occupational Health Fees,18007
Wyre Council,http://opendatacommunities.org/doc/district-council/wyre,30/07/2022,People and Places,Environmental Services,132B,DANFO (UK) LTD,07/07/2022,PE142635,21763.10,0.00,Public Conveniences - Maintenance and Cleaning 2022/23,Other Establishments,56000
Wyre Council,http://opendatacommunities.org/doc/district-council/wyre,30/07/2022,Finance,Collection Fund Revenue Accts,138A,LANCASHIRE COUNTY COUNCIL,08/07/2022,WPST00062835,5754977.00,0.00,LCC 22/23 council tax,Other Local Authorities,52000
Wyre Council,http://opendatacommunities.org/doc/district-council/wyre,30/07/2022,Finance,Collection Fund Revenue Accts,138A,,08/07/2022,WPST00062826,136649.00,0.00,LCC 21/22 Council Tax Deficit,Other Local Authorities,52000
Wyre Council,http://opendatacommunities.org/doc/district-council/wyre,30/07/2022,Finance,Collection Fund Revenue Accts,138A,,08/07/2022,WPST00062833,898615.00,0.00,PCC 22/23 Council Tax,Other Local Authorities,52000
Wyre Council,http://opendatacommunities.org/doc/district-council/wyre,30/07/2022,Finance,Collection Fund Revenue Accts,138A,,08/07/2022,WPST00062834,21250.00,0.00,PCC 21/22 Council Tax Deficit,Other Local Authorities,52000
Wyre Council,http://opendatacommunities.org/doc/district-council/wyre,30/07/2022,Finance,Collection Fund Revenue Accts,138A,LANCASHIRE FIRE AUTHORITY,08/07/2022,WPST00062829,293661.00,0.00,Lancashire Fire22/23 Council Tax,Other Local Authorities,52000
Wyre Council,http://opendatacommunities.org/doc/district-council/wyre,30/07/2022,Finance,Collection Fund Revenue Accts,138A,,08/07/2022,WPST00062830,6782.00,0.00,Lancashire Fire21/22 Council Tax Defici,Other Local Authorities,52000
Wyre Council,http://opendatacommunities.org/doc/district-council/wyre,30/07/2022,Finance,Collection Fund Revenue Accts,138A,LANCASHIRE COUNTY COUNCIL,05/07/2022,WPST00062325,5754977.00,0.00,LCC 22/23 Council tax,Other Local Authorities,52000
Wyre Council,http://opendatacommunities.org/doc/district-council/wyre,30/07/2022,Finance,Collection Fund Revenue Accts,138A,,05/07/2022,WPST00062323,898615.00,0.00,PCC 22/23 Council Tax,Other Local Authorities,52000
Wyre Council,http://opendatacommunities.org/doc/district-council/wyre,30/07/2022,Finance,Collection Fund Revenue Accts,138A,,05/07/2022,WPST00062324,21250.00,0.00,PCC 21/22 Council Tax Deficit,Other Local Authorities,52000
Wyre Council,http://opendatacommunities.org/doc/district-council/wyre,30/07/2022,Finance,Collection Fund Revenue Accts,138A,LANCASHIRE FIRE AUTHORITY,05/07/2022,WPST00062319,293661.00,0.00,Lancs fire 22/23 Council Tax,Other Local Authorities,52000
Wyre Council,http://opendatacommunities.org/doc/district-council/wyre,30/07/2022,Finance,Collection Fund Revenue Accts,138A,,05/07/2022,WPST00062320,6782.00,0.00,Lancs Fire 21/22 Council Tax Deficit,Other Local Authorities,52000
Wyre Council,http://opendatacommunities.org/doc/district-council/wyre,30/07/2022,Finance,Collection Fund Revenue Accts,138A,,05/07/2022,WPST00062316,136649.00,0.00,LCC 21/22 Council Tax Deficit,Other Local Authorities,52000
Wyre Council,http://opendatacommunities.org/doc/district-council/wyre,30/07/2022,Finance,Collection Fund Revenue Accts,138A,,05/07/2022,WPST00062317,194942.00,0.00,LCC 22/23 Business Rates,Other Local Authorities,52000
Wyre Council,http://opendatacommunities.org/doc/district-council/wyre,30/07/2022,Finance,Collection Fund Revenue Accts,138A,LANCASHIRE FIRE AUTHORITY,05/07/2022,WPST00062321,21660.00,0.00,lancs fire 22/23 Business Rates,Other Local Authorities,52000
Wyre Council,http://opendatacommunities.org/doc/district-council/wyre,30/07/2022,Finance,Collection Fund Revenue Accts,138A,LANCASHIRE FIRE AUTHORITY,08/07/2022,WPST00062831,21660.00,0.00,Lancashire Fire22/23 Business Rates,Other Local Authorities,52000
Wyre Council,http://opendatacommunities.org/doc/district-council/wyre,30/07/2022,Finance,Collection Fund Revenue Accts,138A,,08/07/2022,WPST00062827,194942.00,0.00,LCC 22/23 Business Rates,Other Local Authorities,52000
Wyre Council,http://opendatacommunities.org/doc/district-council/wyre,30/07/2022,People and Places,Parking Services,133F,Andrew Signs LTD,20/07/2022,PE142889,285.00,0.00,various signs  already received on invoice 1241,"Paths, Roads and Car Park Mtnce Annual",28050
Wyre Council,http://opendatacommunities.org/doc/district-council/wyre,30/07/2022,People and Places,Cultural and Related Services,132A,Glasdon UK LTD,12/07/2022,PE142676,1062.19,0.00,2 x picnic benches and fixings,"Paths, Roads and Car Park Mtnce Annual",28050
Wyre Council,http://opendatacommunities.org/doc/district-council/wyre,30/07/2022,People and Places,Parking Services,133F,George Hewitt Fabrications,14/07/2022,PE142828,90.00,0.00,1 x repair of swing cross bar,"Paths, Roads and Car Park Mtnce Annual",28050
Wyre Council,http://opendatacommunities.org/doc/district-council/wyre,30/07/2022,Finance,Corporate and Democratic Core,131A,LANCASHIRE COUNTY COUNCIL,04/07/2022,WPST00061998,16433.67,0.00,LCC 30/6,Pension Increase Act Payments,19004
Wyre Council,http://opendatacommunities.org/doc/district-council/wyre,30/07/2022,People and Places,Support Services,135B,Allstar Business Solutions LTD,25/07/2022,PE142325,68.24,0.00,,Petrol,30511
Wyre Council,http://opendatacommunities.org/doc/district-council/wyre,30/07/2022,People and Places,Support Services,135B,Allstar Business Solutions LTD,11/07/2022,PE142595,57.89,0.00,Fuel Charges,Petrol,30511
Wyre Council,http://opendatacommunities.org/doc/district-council/wyre,30/07/2022,People and Places,Cultural and Related Services,132A,Allstar Business Solutions LTD,19/07/2022,PE142594,138.51,0.00,Monthly Fuel Charges,Petrol,30511
Wyre Council,http://opendatacommunities.org/doc/district-council/wyre,30/07/2022,People and Places,Support Services,135B,Allstar Business Solutions LTD,11/07/2022,PE142595,51.60,0.00,Fuel Charges,Petrol,30511
Wyre Council,http://opendatacommunities.org/doc/district-council/wyre,30/07/2022,People and Places,Support Services,135B,Allstar Business Solutions LTD,19/07/2022,PE142594,64.08,0.00,Monthly Fuel Charges,Petrol,30511
Wyre Council,http://opendatacommunities.org/doc/district-council/wyre,30/07/2022,People and Places,Support Services,135B,Allstar Business Solutions LTD,25/07/2022,PE142325,59.60,0.00,,Petrol,30511
Wyre Council,http://opendatacommunities.org/doc/district-council/wyre,30/07/2022,People and Places,Support Services,135B,Allstar Business Solutions LTD,25/07/2022,PE142325,38.22,0.00,,Petrol,30511
Wyre Council,http://opendatacommunities.org/doc/district-council/wyre,30/07/2022,People and Places,Support Services,135B,Allstar Business Solutions LTD,19/07/2022,PE142594,111.52,0.00,Monthly Fuel Charges,Petrol,30511
Wyre Council,http://opendatacommunities.org/doc/district-council/wyre,30/07/2022,People and Places,Support Services,135B,Allstar Business Solutions LTD,11/07/2022,PE142595,101.87,0.00,Fuel Charges,Petrol,30511
Wyre Council,http://opendatacommunities.org/doc/district-council/wyre,30/07/2022,People and Places,Support Services,135B,Allstar Business Solutions LTD,11/07/2022,PE142595,146.59,0.00,Fuel Charges,Petrol,30511
Wyre Council,http://opendatacommunities.org/doc/district-council/wyre,30/07/2022,People and Places,Support Services,135B,Allstar Business Solutions LTD,19/07/2022,PE142594,97.50,0.00,Monthly Fuel Charges,Petrol,30511
Wyre Council,http://opendatacommunities.org/doc/district-council/wyre,30/07/2022,People and Places,Support Services,135B,Allstar Business Solutions LTD,25/07/2022,PE142325,188.05,0.00,,Petrol,30511
Wyre Council,http://opendatacommunities.org/doc/district-council/wyre,30/07/2022,People and Places,Support Services,135B,Allstar Business Solutions LTD,11/07/2022,PE142595,101.81,0.00,Fuel Charges,Petrol,30511
Wyre Council,http://opendatacommunities.org/doc/district-council/wyre,30/07/2022,People and Places,Support Services,135B,Allstar Business Solutions LTD,25/07/2022,PE142325,160.53,0.00,,Petrol,30511
Wyre Council,http://opendatacommunities.org/doc/district-council/wyre,30/07/2022,People and Places,Support Services,135B,Allstar Business Solutions LTD,11/07/2022,PE142595,51.23,0.00,Fuel Charges,Petrol,30511
Wyre Council,http://opendatacommunities.org/doc/district-council/wyre,30/07/2022,People and Places,Support Services,135B,Allstar Business Solutions LTD,25/07/2022,PE142325,45.89,0.00,,Petrol,30511
Wyre Council,http://opendatacommunities.org/doc/district-council/wyre,30/07/2022,People and Places,Support Services,135B,Allstar Business Solutions LTD,19/07/2022,PE142594,48.86,0.00,Monthly Fuel Charges,Petrol,30511
Wyre Council,http://opendatacommunities.org/doc/district-council/wyre,30/07/2022,People and Places,Cultural and Related Services,132A,Schneider Electric LTD,19/07/2022,PE142508,770.00,0.00,maintenance,Planned Building Maintenance,21000
Wyre Council,http://opendatacommunities.org/doc/district-council/wyre,30/07/2022,People and Places,Planning and Development Servs,132C,COWLEY FIRE,12/07/2022,PE142266,720.38,0.00,Service,Planned Building Maintenance,21000
Wyre Council,http://opendatacommunities.org/doc/district-council/wyre,30/07/2022,Resources,Planning and Development Servs,132C,COWLEY FIRE,12/07/2022,RS142484,436.00,0.00,service,Planned Building Maintenance,21000
Wyre Council,http://opendatacommunities.org/doc/district-council/wyre,30/07/2022,People and Places,Support Services,135B,GARRY CARR BUILDING SERVICES LTD,13/07/2022,PE142235,2490.00,0.00,Decoration for HR,Planned Building Maintenance,21000
Wyre Council,http://opendatacommunities.org/doc/district-council/wyre,30/07/2022,People and Places,Support Services,135B,S J HULL ELECTRICAL CONTRACTORS LTD,11/07/2022,PE142178,6218.86,0.00,Electric Installation,Planned Building Maintenance,21000
Wyre Council,http://opendatacommunities.org/doc/district-council/wyre,30/07/2022,Finance,Central Services to the Public,131C,SANTANDER,08/07/2022,WPST00062809,890.16,0.00,santander bank charges 67,Plastic Cards Processing Fees,42608
Wyre Council,http://opendatacommunities.org/doc/district-council/wyre,30/07/2022,People and Places,Support Services,135B,GB  Sport & Leisure UK LTD,22/07/2022,PE142937,875.00,0.00,SP-01-052 HUCK Original 1.2m Birds Nest with chains,Playground Equipment,40201
Wyre Council,http://opendatacommunities.org/doc/district-council/wyre,30/07/2022,People and Places,Support Services,135B,GB  Sport & Leisure UK LTD,22/07/2022,PE142937,665.50,0.00,SP-01-014B 1.2m Birds Nest Seat � A Frame,Playground Equipment,40201
Wyre Council,http://opendatacommunities.org/doc/district-council/wyre,30/07/2022,People and Places,Support Services,135B,GB  Sport & Leisure UK LTD,22/07/2022,PE142937,189.66,0.00,Delivery,Playground Equipment,40201
Wyre Council,http://opendatacommunities.org/doc/district-council/wyre,30/07/2022,People and Places,Support Services,135B,GB  Sport & Leisure UK LTD,22/07/2022,PE142937,108.00,0.00,SP-34-001 Rope repair kit,Playground Equipment,40201
Wyre Council,http://opendatacommunities.org/doc/district-council/wyre,30/07/2022,People and Places,Support Services,135B,GB  Sport & Leisure UK LTD,22/07/2022,PE142937,90.00,0.00,SP-34-001C Rope Repair Connector � Single,Playground Equipment,40201
Wyre Council,http://opendatacommunities.org/doc/district-council/wyre,30/07/2022,People and Places,Support Services,135B,GB  Sport & Leisure UK LTD,22/07/2022,PE142937,28.80,0.00,SP-07-003 Plastic Egg Connectors c/w Screw,Playground Equipment,40201
Wyre Council,http://opendatacommunities.org/doc/district-council/wyre,30/07/2022,People and Places,Support Services,135B,GB  Sport & Leisure UK LTD,22/07/2022,PE142937,48.00,0.00,SP-07-004 End Tees c/w screw,Playground Equipment,40201
Wyre Council,http://opendatacommunities.org/doc/district-council/wyre,30/07/2022,People and Places,Support Services,135B,GB  Sport & Leisure UK LTD,22/07/2022,PE142937,51.00,0.00,SP-07-006 X-Connector 16mm including Screw - RED,Playground Equipment,40201
Wyre Council,http://opendatacommunities.org/doc/district-council/wyre,30/07/2022,People and Places,Support Services,135B,GB  Sport & Leisure UK LTD,22/07/2022,PE142937,40.00,0.00,SP-11-110 Rubber Mulch - 20kgs - Earth Tone 2 - Dark Brown,Playground Equipment,40201
Wyre Council,http://opendatacommunities.org/doc/district-council/wyre,30/07/2022,People and Places,Support Services,135B,GB  Sport & Leisure UK LTD,22/07/2022,PE142937,110.00,0.00,SP-43-007U Fast Cure Resin 5kg,Playground Equipment,40201
Wyre Council,http://opendatacommunities.org/doc/district-council/wyre,30/07/2022,Resources,Support Services,135B,Keep Britain Tidy,11/07/2022,RS140398,1079.10,0.00,Enforcement Academy - Martin McBurney,Post Entry/Professional Training,17003
Wyre Council,http://opendatacommunities.org/doc/district-council/wyre,30/07/2022,People and Places,Central Services to the Public,131C,Royal Mail Group PLC,27/07/2022,PE142970,772.46,0.00,Cleveleys Park By-Election - Return cost for postal votes. Including PV licence fee.,Postage,43000
Wyre Council,http://opendatacommunities.org/doc/district-council/wyre,30/07/2022,Resources,Central Services to the Public,131C,Royal Mail Group PLC,22/07/2022,RS142913,637.36,0.00,"Cleveleys By-Election Business Mail Advanced 1,073 items postal votes",Postage,43000
Wyre Council,http://opendatacommunities.org/doc/district-council/wyre,30/07/2022,People and Places,Support Services,135B,Critiqom LTD,05/07/2022,PE142539,617.12,0.00,IQ post - CC,Postage,43000
Wyre Council,http://opendatacommunities.org/doc/district-council/wyre,30/07/2022,People and Places,Support Services,135B,Critiqom LTD,05/07/2022,PE142539,223.12,0.00,IQ Post - Planning,Postage,43000
Wyre Council,http://opendatacommunities.org/doc/district-council/wyre,30/07/2022,People and Places,Housing General Fund,134A,Critiqom LTD,05/07/2022,PE142539,35.09,0.00,Benefit Notifications,Postage,43000
Wyre Council,http://opendatacommunities.org/doc/district-council/wyre,30/07/2022,People and Places,Housing General Fund,134A,Critiqom LTD,05/07/2022,PE142540,124.55,0.00,Benefit Notifications,Postage,43000
Wyre Council,http://opendatacommunities.org/doc/district-council/wyre,30/07/2022,People and Places,Support Services,135B,Critiqom LTD,05/07/2022,PE142540,355.01,0.00,Council Tax Reminders,Postage,43000
Wyre Council,http://opendatacommunities.org/doc/district-council/wyre,30/07/2022,People and Places,Support Services,135B,Critiqom LTD,05/07/2022,PE142540,28.02,0.00,NNDR Reminders,Postage,43000
Wyre Council,http://opendatacommunities.org/doc/district-council/wyre,30/07/2022,People and Places,Support Services,135B,Critiqom LTD,05/07/2022,PE142540,217.65,0.00,Council Tax Summons,Postage,43000
Wyre Council,http://opendatacommunities.org/doc/district-council/wyre,30/07/2022,People and Places,Support Services,135B,Critiqom LTD,05/07/2022,PE142540,12.93,0.00,NNDR Summons,Postage,43000
Wyre Council,http://opendatacommunities.org/doc/district-council/wyre,30/07/2022,People and Places,Central Services to the Public,131C,Critiqom LTD,05/07/2022,PE142539,84.31,0.00,IQ post - Electroral,Postage,43000
Wyre Council,http://opendatacommunities.org/doc/district-council/wyre,30/07/2022,People and Places,Support Services,135B,Critiqom LTD,05/07/2022,PE142539,582.37,0.00,IQ post - Off Serv Admin,Postage,43000
Wyre Council,http://opendatacommunities.org/doc/district-council/wyre,30/07/2022,People and Places,Central Services to the Public,131C,Critiqom LTD,05/07/2022,PE142540,1490.59,0.00,Daily Bills,Postage,43000
Wyre Council,http://opendatacommunities.org/doc/district-council/wyre,30/07/2022,People and Places,Central Services to the Public,131C,Critiqom LTD,05/07/2022,PE142539,382.78,0.00,Daily Bills,Postage,43000
Wyre Council,http://opendatacommunities.org/doc/district-council/wyre,30/07/2022,People and Places,Support Services,135B,Critiqom LTD,05/07/2022,PE142539,117.00,0.00,Ctax reminders,Postage,43000
Wyre Council,http://opendatacommunities.org/doc/district-council/wyre,30/07/2022,People and Places,Support Services,135B,Critiqom LTD,05/07/2022,PE142539,4.40,0.00,NNDR Reminders,Postage,43000
Wyre Council,http://opendatacommunities.org/doc/district-council/wyre,30/07/2022,People and Places,Support Services,135B,Critiqom LTD,05/07/2022,PE142539,80.88,0.00,Ctax Summons,Postage,43000
Wyre Council,http://opendatacommunities.org/doc/district-council/wyre,30/07/2022,People and Places,Support Services,135B,Critiqom LTD,05/07/2022,PE142539,4.81,0.00,NNDR Summons,Postage,43000
Wyre Council,http://opendatacommunities.org/doc/district-council/wyre,30/07/2022,People and Places,Support Services,135B,Critiqom LTD,05/07/2022,PE142539,7.21,0.00,IQ post - Recovery,Postage,43000
Wyre Council,http://opendatacommunities.org/doc/district-council/wyre,30/07/2022,Resources,Housing General Fund,134A,Critiqom LTD,12/07/2022,RS142186,53.00,0.00,Benefit Notifications,Postage,43000
Wyre Council,http://opendatacommunities.org/doc/district-council/wyre,30/07/2022,Resources,Support Services,135B,Critiqom LTD,12/07/2022,RS142186,623.26,0.00,IQ post - CC,Postage,43000
Wyre Council,http://opendatacommunities.org/doc/district-council/wyre,30/07/2022,Resources,Support Services,135B,Critiqom LTD,12/07/2022,RS142186,242.07,0.00,IQ post - Planning,Postage,43000
Wyre Council,http://opendatacommunities.org/doc/district-council/wyre,30/07/2022,Resources,Central Services to the Public,131C,Critiqom LTD,12/07/2022,RS142186,200.00,0.00,CTAX Technical,Postage,43000
Wyre Council,http://opendatacommunities.org/doc/district-council/wyre,30/07/2022,Resources,Central Services to the Public,131C,Critiqom LTD,12/07/2022,RS142186,385.17,0.00,Daily Bills,Postage,43000
Wyre Council,http://opendatacommunities.org/doc/district-council/wyre,30/07/2022,Resources,Central Services to the Public,131C,Critiqom LTD,12/07/2022,RS142186,134.46,0.00,IQ post - Electoral,Postage,43000
Wyre Council,http://opendatacommunities.org/doc/district-council/wyre,30/07/2022,Resources,Support Services,135B,Critiqom LTD,22/07/2022,RS142915,20.00,0.00,data infractions june 2022,Postage,43000
Wyre Council,http://opendatacommunities.org/doc/district-council/wyre,30/07/2022,Resources,Support Services,135B,Critiqom LTD,12/07/2022,RS142186,680.29,0.00,IQ post - off serv admin,Postage,43000
Wyre Council,http://opendatacommunities.org/doc/district-council/wyre,30/07/2022,Resources,Support Services,135B,Critiqom LTD,12/07/2022,RS142186,20.64,0.00,IQ post - recovery,Postage,43000
Wyre Council,http://opendatacommunities.org/doc/district-council/wyre,30/07/2022,Resources,Support Services,135B,Critiqom LTD,12/07/2022,RS142186,570.03,0.00,Ctax Reminders,Postage,43000
Wyre Council,http://opendatacommunities.org/doc/district-council/wyre,30/07/2022,Resources,Support Services,135B,Critiqom LTD,12/07/2022,RS142186,21.13,0.00,NNDR Reminders,Postage,43000
Wyre Council,http://opendatacommunities.org/doc/district-council/wyre,30/07/2022,Resources,Support Services,135B,Critiqom LTD,12/07/2022,RS142186,545.20,0.00,CTAX Summons,Postage,43000
Wyre Council,http://opendatacommunities.org/doc/district-council/wyre,30/07/2022,Resources,Support Services,135B,Critiqom LTD,12/07/2022,RS142186,28.71,0.00,NNDR Summons,Postage,43000
Wyre Council,http://opendatacommunities.org/doc/district-council/wyre,30/07/2022,Resources,Central Services to the Public,131C,Print Image Facilities LLP,26/07/2022,RS142969,2059.93,0.00,Cleveleys Park by-Election Poll Card postage - 3746 poll cards,Postage,43000
Wyre Council,http://opendatacommunities.org/doc/district-council/wyre,30/07/2022,Resources,Central Services to the Public,131C,Print Image Facilities LLP,26/07/2022,RS142951,1792.57,0.00,Preesall By-Election - Postage of 4403 poll cards,Postage,43000
Wyre Council,http://opendatacommunities.org/doc/district-council/wyre,30/07/2022,Resources,Environmental Services,132B,PermiServ Ltd,12/07/2022,RS142672,7895.00,0.00,"Production, postage and management of green waste subscription stickers/portal as per Lancashire agreement.  Please leave PO open and it will be drawn off each month",Postage,43000
Wyre Council,http://opendatacommunities.org/doc/district-council/wyre,30/07/2022,Resources,Corporate and Democratic Core,131A,Print Image Network LTD,25/07/2022,RS142942,1042.00,0.00,Cleveleys Park By-Election Printing of 32 Ballot Books,Printing,42000
Wyre Council,http://opendatacommunities.org/doc/district-council/wyre,30/07/2022,Resources,Central Services to the Public,131C,Print Image Network LTD,25/07/2022,RS142941,1635.20,0.00,Cleveleys Pak Ward By-Election  30 June  2022  1123 Postal Votes Printing,Printing,42000
Wyre Council,http://opendatacommunities.org/doc/district-council/wyre,30/07/2022,People and Places,Parking Services,133F,FLOWBIRD SMART CITY UK LTD,04/07/2022,PE142510,1395.00,0.00,"Provide 10 boxes HYBRID4 100mm single issue non-adhesive tickets, REVERSE WOUND for use in CWT machines.Delivery to    Paul Long   Wyre Civic Centre   Breck Road   Poulton-le-Fylde   FY6 7PU",Printing,42000
Wyre Council,http://opendatacommunities.org/doc/district-council/wyre,30/07/2022,Finance,Housing General Fund,134A,,08/07/2022,WPST00062810,11269.99,0.00,homes for ukraine payment - 6/7,Private Contractors,57000
Wyre Council,http://opendatacommunities.org/doc/district-council/wyre,30/07/2022,Finance,Housing General Fund,134A,,08/07/2022,WPST00062811,568.63,0.00,home for ukraine payment 6/7,Private Contractors,57000
Wyre Council,http://opendatacommunities.org/doc/district-council/wyre,30/07/2022,People and Places,Cultural and Related Services,132A,Peerless Fencing Ltd,04/07/2022,PE142533,8489.93,0.00,School Lane Inskip  - work as quotation PF/Q/46706/Rev/GN,Private Contractors,57000
Wyre Council,http://opendatacommunities.org/doc/district-council/wyre,30/07/2022,Resources,Parking Services,133F,NSL Services Group,13/07/2022,RS142709,3315.27,0.00,NSL,Private Contractors,57000
Wyre Council,http://opendatacommunities.org/doc/district-council/wyre,30/07/2022,Resources,Housing General Fund,134A,Salvation Army,01/07/2022,RS142488,12139.62,0.00,UKRS Support Pre- Arrival costs May 2022.,Private Contractors,57000
Wyre Council,http://opendatacommunities.org/doc/district-council/wyre,30/07/2022,People and Places,Environmental Services,132B,Idverde Limited,28/07/2022,PE143015,12008.12,0.00,Wyre Highway Weed Control - Urban,Private Contractors,57000
Wyre Council,http://opendatacommunities.org/doc/district-council/wyre,30/07/2022,People and Places,Environmental Services,132B,Idverde Limited,28/07/2022,PE143015,4002.71,0.00,Wyre Highway Weed Control - Rural,Private Contractors,57000
Wyre Council,http://opendatacommunities.org/doc/district-council/wyre,30/07/2022,People and Places,Planning and Development Servs,132C,National World Publishing Ltd,26/07/2022,PE141936,400.00,0.00,Jubilee event adverts x 3 and front strip,Promotions - General,46104
Wyre Council,http://opendatacommunities.org/doc/district-council/wyre,30/07/2022,People and Places,Cultural and Related Services,132A,MSG Media Limited,04/07/2022,PE142462,550.00,0.00,Weight management ad,Promotions - General,46104
Wyre Council,http://opendatacommunities.org/doc/district-council/wyre,30/07/2022,Resources,Environmental Services,132B,PermiServ Ltd,12/07/2022,RS142672,7902.60,0.00,"Production, postage and management of green waste subscription stickers/portal as per Lancashire agreement.  Please leave PO open and it will be drawn off each month",Promotions - General,46104
Wyre Council,http://opendatacommunities.org/doc/district-council/wyre,30/07/2022,Resources,Planning and Development Servs,132C,Ability Promotions Ltd,04/07/2022,RS142532,1195.00,0.00,1/2 page in Living with Disability Magazine Summer edition,Promotions - General,46104
Wyre Council,http://opendatacommunities.org/doc/district-council/wyre,30/07/2022,People and Places,Planning and Development Servs,132C,LINK SECURITY SERVICES NW LTD,13/07/2022,PE142700,162.00,0.00,SIA staff for Jubilee event at Fleetwood market,Promotions - General,46104
Wyre Council,http://opendatacommunities.org/doc/district-council/wyre,30/07/2022,People and Places,Planning and Development Servs,132C,Whitegate Motors,04/07/2022,PE142468,3000.00,0.00,"Wrapped Van - Artwork, Production and 12 months advertising",Promotions - General,46104
Wyre Council,http://opendatacommunities.org/doc/district-council/wyre,30/07/2022,People and Places,Environmental Services,132B,A & C Weber UK LTD,26/07/2022,PE142968,7651.20,0.00,240ltr Grey Carcasses with Blue Lid @ 23.91 per unit,"Provision of Bins, Boxes and Sacks",40500
Wyre Council,http://opendatacommunities.org/doc/district-council/wyre,30/07/2022,People and Places,Environmental Services,132B,A & C Weber UK LTD,26/07/2022,PE142968,9564.00,0.00,240ltr Grey Carcasses with Red Lid @ 23.91 per unit,"Provision of Bins, Boxes and Sacks",40500
Wyre Council,http://opendatacommunities.org/doc/district-council/wyre,30/07/2022,People and Places,Environmental Services,132B,Veolia ES (UK) LTD,22/07/2022,PE142905,4584.66,0.00,Bin delivery,"Provision of Bins, Boxes and Sacks",40500
Wyre Council,http://opendatacommunities.org/doc/district-council/wyre,30/07/2022,People and Places,Environmental Services,132B,PermiServ Ltd,04/07/2022,PE142530,4562.00,0.00,40000 Synthetic Tag Stock 40k tags split over 4 designs on rolls of200 ( size 100x355.6) Prices as per quote 0000053949 (Price ID 106761)Anticipated delivery ASAP e-mail address: andy@permiserv.com mail@permiserv.comTo be delivered t,"Provision of Bins, Boxes and Sacks",40500
Wyre Council,http://opendatacommunities.org/doc/district-council/wyre,30/07/2022,Resources,Support Services,135B,Zurich Municipal,12/07/2022,RS142608,49631.45,0.00,Annual insurance renewal  Combined Policy - QLA 07H081-0083-00 Effective 30/6/22 to 29/6/23 Premium including IPT,Public and Product Liability Insurance,18004
Wyre Council,http://opendatacommunities.org/doc/district-council/wyre,30/07/2022,Resources,Support Services,135B,Zurich Municipal,12/07/2022,RS142608,305.69,0.00,Annual insurance renewal  Combined Policy - QLA 07H081-0083-00 Effective 30/6/22 to 29/6/23 Premium including IPT,Public Health Act Insurance,46003
Wyre Council,http://opendatacommunities.org/doc/district-council/wyre,30/07/2022,Resources,Central Services to the Public,131C,Bates Office Services Ltd,21/07/2022,RS142907,199.84,0.00,"1 x TSK/ZA Task Chair, Black with Arms (Joanne Porter)",Purchase Furniture,40300
Wyre Council,http://opendatacommunities.org/doc/district-council/wyre,30/07/2022,Resources,Support Services,135B,Estates Gazette,13/07/2022,RS142781,2099.00,0.00,Reference Q-00286103Subscription Period 18 June 2022 - 17 June 2023Radius Data Exchange Non-Contributor,Purchase of Publications,42302
Wyre Council,http://opendatacommunities.org/doc/district-council/wyre,30/07/2022,People and Places,Environmental Services,132B,Blackpool Council,19/07/2022,PE142877,821.33,0.00,Ref 2012001Replacement Monitors.Samsung / HanwhaB-2 * Monitors - As per existing Monitors Make (22``) - inc brackets - supplied and fitted - 821.33,Purchase of Tools or Equipment,40100
Wyre Council,http://opendatacommunities.org/doc/district-council/wyre,30/07/2022,People and Places,Planning and Development Servs,132C,EAS Electrical Mechanical,07/07/2022,PE142601,153.84,0.00,Supply Box Of Lamps,Purchase of Tools or Equipment,40100
Wyre Council,http://opendatacommunities.org/doc/district-council/wyre,30/07/2022,People and Places,Support Services,135B,United Utilities Standpipes,01/07/2022,PE142376,23.45,0.00,"Hire of 28/50mm Standpipe Located at the Memorial Park, Fleetwood Contract SP15/4766 C19056393",Purchase of Tools or Equipment,40100
Wyre Council,http://opendatacommunities.org/doc/district-council/wyre,30/07/2022,People and Places,Cultural and Related Services,132A,THORNTON CLEVELEYS YOUTH THEATRE,14/07/2022,PE142822,7932.00,0.00,Refund of ticket sales - TLT 25th - 28th May 2022,Refund of Ticket Sales to Ext Promoters,46830
Wyre Council,http://opendatacommunities.org/doc/district-council/wyre,30/07/2022,People and Places,Cultural and Related Services,132A,Last Choir Singing Community Foundation,12/07/2022,PE142536,-2709.00,0.00,Internal credit note raised becassue VAT code entered incorrectly on original invoice,Refund of Ticket Sales to Ext Promoters,46830
Wyre Council,http://opendatacommunities.org/doc/district-council/wyre,30/07/2022,People and Places,Cultural and Related Services,132A,Thornton Friends of Trinity Hospice,13/07/2022,PE142820,3880.00,0.00,Refund of ticket sales - Diamond Delight 21/5/22,Refund of Ticket Sales to Ext Promoters,46830
Wyre Council,http://opendatacommunities.org/doc/district-council/wyre,30/07/2022,People and Places,Cultural and Related Services,132A,Tiptoes Dance Academy,28/07/2022,PE143008,1953.00,0.00,Refund of ticket sales,Refund of Ticket Sales to Ext Promoters,46830
Wyre Council,http://opendatacommunities.org/doc/district-council/wyre,30/07/2022,People and Places,Support Services,135B,Blackpool Council,05/07/2022,PE142419,2882.48,0.00,Civic Centre Waste Collection - 01/04/2022 - 31/03/2023,Refuse Collection,27008
Wyre Council,http://opendatacommunities.org/doc/district-council/wyre,30/07/2022,People and Places,Planning and Development Servs,132C,Suez Recycling And Recovery UK LTD,04/07/2022,PE142515,1229.87,0.00,waste removal market suez June 22 to March 23,Refuse Collection,27008
Wyre Council,http://opendatacommunities.org/doc/district-council/wyre,30/07/2022,People and Places,Planning and Development Servs,132C,Suez Recycling And Recovery UK LTD,13/07/2022,PE142024,1134.13,0.00,waste removal market suez June 22 to March 23,Refuse Collection,27008
Wyre Council,http://opendatacommunities.org/doc/district-council/wyre,30/07/2022,People and Places,Environmental Services,132B,Veolia ES (UK) LTD,22/07/2022,PE142905,186301.30,0.00,Domestic Waste Management Collection Contract 2022/23,Refuse Collection Contract,27009
Wyre Council,http://opendatacommunities.org/doc/district-council/wyre,30/07/2022,People and Places,Environmental Services,132B,Veolia ES (UK) LTD,22/07/2022,PE142905,2150.37,0.00,Pension pass through,Refuse Collection Contract,27009
Wyre Council,http://opendatacommunities.org/doc/district-council/wyre,30/07/2022,People and Places,Cultural and Related Services,132A,Robert Pinkus Property Management LTD,25/07/2022,PE141276,-4788.00,0.00,Credit to cancel original invoice,Rents,23000
Wyre Council,http://opendatacommunities.org/doc/district-council/wyre,30/07/2022,People and Places,Support Services,135B,EAS Electrical Mechanical,12/07/2022,PE142738,25.05,0.00,Investigate leak in gents toliets at civic centre,Responsive Building Maintenance,21002
Wyre Council,http://opendatacommunities.org/doc/district-council/wyre,30/07/2022,People and Places,Planning and Development Servs,132C,EAS Electrical Mechanical,07/07/2022,PE142602,67.70,0.00,Investigate Low water pressure on sink - Replace faulty tap revivers and test,Responsive Building Maintenance,21002
Wyre Council,http://opendatacommunities.org/doc/district-council/wyre,30/07/2022,People and Places,Cultural and Related Services,132A,EAS Electrical Mechanical,12/07/2022,PE142739,339.63,0.00,Investigate no water supply at Beach Chalets,Responsive Building Maintenance,21002
Wyre Council,http://opendatacommunities.org/doc/district-council/wyre,30/07/2022,Resources,Cultural and Related Services,132A,EAS Electrical Mechanical,19/07/2022,RS142875,48.00,0.00,tighten loose tap,Responsive Building Maintenance,21002
Wyre Council,http://opendatacommunities.org/doc/district-council/wyre,30/07/2022,Resources,Planning and Development Servs,132C,EAS Electrical Mechanical,19/07/2022,RS142874,1355.25,0.00,installation to power,Responsive Building Maintenance,21002
Wyre Council,http://opendatacommunities.org/doc/district-council/wyre,30/07/2022,People and Places,Planning and Development Servs,132C,M D Security,19/07/2022,PE142640,220.00,0.00,repairs at marine hall,Responsive Building Maintenance,21002
Wyre Council,http://opendatacommunities.org/doc/district-council/wyre,30/07/2022,People and Places,Planning and Development Servs,132C,M D Security,11/07/2022,PE142108,360.00,0.00,ceiling works,Responsive Building Maintenance,21002
Wyre Council,http://opendatacommunities.org/doc/district-council/wyre,30/07/2022,People and Places,Central Services to the Public,131C,GARRY CARR BUILDING SERVICES LTD,07/07/2022,PE142144,4380.00,0.00,Remove window - fit one new large window 4800mm and 1 small window,Responsive Building Maintenance,21002
Wyre Council,http://opendatacommunities.org/doc/district-council/wyre,30/07/2022,People and Places,Cultural and Related Services,132A,GARRY CARR BUILDING SERVICES LTD,11/07/2022,PE142142,1139.00,0.00,Cherry Picker,Responsive Building Maintenance,21002
Wyre Council,http://opendatacommunities.org/doc/district-council/wyre,30/07/2022,People and Places,Cultural and Related Services,132A,GARRY CARR BUILDING SERVICES LTD,22/07/2022,PE142900,49.00,0.00,investigate leak,Responsive Building Maintenance,21002
Wyre Council,http://opendatacommunities.org/doc/district-council/wyre,30/07/2022,People and Places,Cultural and Related Services,132A,GARRY CARR BUILDING SERVICES LTD,19/07/2022,PE142764,170.00,0.00,remove graffiti,Responsive Building Maintenance,21002
Wyre Council,http://opendatacommunities.org/doc/district-council/wyre,30/07/2022,People and Places,Environmental Services,132B,GARRY CARR BUILDING SERVICES LTD,19/07/2022,PE142765,357.00,0.00,prepare and paint,Responsive Building Maintenance,21002
Wyre Council,http://opendatacommunities.org/doc/district-council/wyre,30/07/2022,People and Places,Cultural and Related Services,132A,GARRY CARR BUILDING SERVICES LTD,19/07/2022,PE142405,225.00,0.00,steel door for toilet,Responsive Building Maintenance,21002
Wyre Council,http://opendatacommunities.org/doc/district-council/wyre,30/07/2022,People and Places,Cultural and Related Services,132A,GARRY CARR BUILDING SERVICES LTD,19/07/2022,PE142408,3699.00,0.00,replacement of fire exit doors,Responsive Building Maintenance,21002
Wyre Council,http://opendatacommunities.org/doc/district-council/wyre,30/07/2022,People and Places,Cultural and Related Services,132A,GARRY CARR BUILDING SERVICES LTD,19/07/2022,PE142766,144.00,0.00,remove graffiti,Responsive Building Maintenance,21002
Wyre Council,http://opendatacommunities.org/doc/district-council/wyre,30/07/2022,People and Places,Support Services,135B,GARRY CARR BUILDING SERVICES LTD,07/07/2022,PE142143,521.00,0.00,Painting and woodwork,Responsive Building Maintenance,21002
Wyre Council,http://opendatacommunities.org/doc/district-council/wyre,30/07/2022,People and Places,Support Services,135B,GARRY CARR BUILDING SERVICES LTD,19/07/2022,PE142387,2290.00,0.00,replacement of carpet tiles,Responsive Building Maintenance,21002
Wyre Council,http://opendatacommunities.org/doc/district-council/wyre,30/07/2022,Resources,Cultural and Related Services,132A,GARRY CARR BUILDING SERVICES LTD,07/07/2022,RS142236,314.00,0.00,floor paint marine hall,Responsive Building Maintenance,21002
Wyre Council,http://opendatacommunities.org/doc/district-council/wyre,30/07/2022,Resources,Cultural and Related Services,132A,GARRY CARR BUILDING SERVICES LTD,11/07/2022,RS142238,216.00,0.00,Roof and paint work.,Responsive Building Maintenance,21002
Wyre Council,http://opendatacommunities.org/doc/district-council/wyre,30/07/2022,Resources,Housing General Fund,134A,BRADBURN ESTATES LTD,25/07/2022,RS142932,740.00,0.00,REDACT,Rough Sleeper Project/NSNO,46846
Wyre Council,http://opendatacommunities.org/doc/district-council/wyre,30/07/2022,Resources,Housing General Fund,134A,Acquire Homes,19/07/2022,RS142863,780.00,0.00,REDACT,Rough Sleeper Project/NSNO,46846
Wyre Council,http://opendatacommunities.org/doc/district-council/wyre,30/07/2022,People and Places,Support Services,135B,A1 Streamline Road,19/07/2022,PE142869,1600.00,0.00,"Memorial Park, Fleetwood Revised Enquiry number: 13278/1  On a Tarmac Surface - Thermoplastic Screed 1.  Tennis Courts - 2 @ 400 = 800.00 2.  Football (white) - 1 @ 400 3.  Basketball (yellow) - 1 @ 400 Total cost = 1600   Please contact Roger Brockl",Routine Maintenance,28015
Wyre Council,http://opendatacommunities.org/doc/district-council/wyre,30/07/2022,People and Places,Support Services,135B,DCM Projects LTD,18/07/2022,PE142858,4162.00,0.00,Great Eccleston Playing Field PR3 0UX - Perimeter Repairs - 82lm with a 250 - 300mm  cutback and relay in Black EPDM  Cut out the 4 x area`s in green and replace in Green EPDM approx 1.5m2 cut out and remove damaged area`s to corner of swing and relay in,Routine Maintenance,28015
Wyre Council,http://opendatacommunities.org/doc/district-council/wyre,30/07/2022,People and Places,Support Services,135B,DCM Projects LTD,14/07/2022,PE142835,3240.00,0.00,Apple Tree Close St Michaels PR3 0TG - Perimeter Repairs - 69.5lm  with a 250 - 300mm cutback  and relay in Black EPDM,Routine Maintenance,28015
Wyre Council,http://opendatacommunities.org/doc/district-council/wyre,30/07/2022,People and Places,Highways,133B,Glasdon UK LTD,11/07/2022,PE142677,486.70,0.00,Supply one black phoenix memorial bench with plaque.Plaque inscription to read In Loving Memory of Laura Jane Head9th November 1994 - 4th March 2022Your life was a blessingYour memory a treasureYou are loved beyond wordsAnd missed beyond m,Seats and Shelters (Non BM),21012
Wyre Council,http://opendatacommunities.org/doc/district-council/wyre,30/07/2022,People and Places,Highways,133B,Glasdon UK LTD,11/07/2022,PE142678,486.70,0.00,"Supply one black phoenix memorial bench with plaque.Plaque inscription to read �In Loving Memory Of� JONATHAN DICKINSON from 24th May 1992 to 27th March 2022Always In Our Hearts Please deliver bench to Copse Road Depot, Copse Road, Fleet",Seats and Shelters (Non BM),21012
Wyre Council,http://opendatacommunities.org/doc/district-council/wyre,30/07/2022,Resources,Support Services,135B,Idox Software LTD,12/07/2022,RS142731,1500.00,0.00,Connector Consultancy to upgrade Idox Uniform Planniing Portal to v1.2.,Software Maintenance,43604
Wyre Council,http://opendatacommunities.org/doc/district-council/wyre,30/07/2022,Resources,Support Services,135B,Civica UK LTD,12/07/2022,RS142084,29930.00,0.00,"Civica financial re-contract annual licence fee, support and maintenance Yr2 01/07/2022 - 30/06/2023",Software Maintenance,43604
Wyre Council,http://opendatacommunities.org/doc/district-council/wyre,30/07/2022,Resources,Support Services,135B,Phoenix Software LTD,05/07/2022,RS142538,26.40,0.00,Enterprise Mobility Suite Shared Server All Language Subscription Add On to User E CAL - 1Licence,Software Maintenance,43604
Wyre Council,http://opendatacommunities.org/doc/district-council/wyre,30/07/2022,Resources,Support Services,135B,Phoenix Software LTD,05/07/2022,RS142538,37.60,0.00,Visio Online Plan 1 Shared Server All Languages Subscription Per User - Licence 1,Software Maintenance,43604
Wyre Council,http://opendatacommunities.org/doc/district-council/wyre,30/07/2022,Resources,Support Services,135B,Phoenix Software LTD,05/07/2022,RS142538,4584.00,0.00,Microsoft M365 F3 Full USL Shared Server All Language Monthly Subscription 1 Licence 50Per User - Licence,Software Maintenance,43604
Wyre Council,http://opendatacommunities.org/doc/district-council/wyre,30/07/2022,Resources,Support Services,135B,Phoenix Software LTD,05/07/2022,RS142538,212.82,0.00,Power BI Professional Shared Server Subscription 1 Licence Per User - Licence 3 70.94,Software Maintenance,43604
Wyre Council,http://opendatacommunities.org/doc/district-council/wyre,30/07/2022,Resources,Support Services,135B,Phoenix Software LTD,05/07/2022,RS142538,62310.40,0.00,M365 E3 Shared Server All Language Subscription Per User - Licence  x 320,Software Maintenance,43604
Wyre Council,http://opendatacommunities.org/doc/district-council/wyre,30/07/2022,Resources,Support Services,135B,Phoenix Software LTD,05/07/2022,RS142538,14678.40,0.00,VDA Add On from M365 E3/E5 Shared Server ALNG MVL Per User - Licence 320 45.87,Software Maintenance,43604
Wyre Council,http://opendatacommunities.org/doc/district-council/wyre,30/07/2022,Resources,Support Services,135B,Phoenix Software LTD,05/07/2022,RS142538,34.27,0.00,Audio Conferencing Shared Server Subscription Per User - Licence,Software Maintenance,43604
Wyre Council,http://opendatacommunities.org/doc/district-council/wyre,30/07/2022,Resources,Support Services,135B,Phoenix Software LTD,05/07/2022,RS142538,2050.50,0.00,Power Automate Per Flow Plan SharedServer All Language Subscriptions 1 Licence 5Minimum 5 Licences - Licence,Software Maintenance,43604
Wyre Council,http://opendatacommunities.org/doc/district-council/wyre,30/07/2022,Resources,Support Services,135B,Phoenix Software LTD,05/07/2022,RS142538,62.91,0.00,Power Automate Plan Shared Server All Language Subscription 1 Licence Per User - 1Licence,Software Maintenance,43604
Wyre Council,http://opendatacommunities.org/doc/district-council/wyre,30/07/2022,Resources,Support Services,135B,Phoenix Software LTD,05/07/2022,RS142538,23.07,0.00,System Centre Standard Core All Language Licence with Software Assurance Pack 2 1Licences CoreLicence - Licence,Software Maintenance,43604
Wyre Council,http://opendatacommunities.org/doc/district-council/wyre,30/07/2022,Resources,Support Services,135B,Phoenix Software LTD,05/07/2022,RS142538,4391.70,0.00,"Windows ServerData Center Core All Language Licence and Software Assurance Pack 16 3Licences Core - Licence01308787 9EA-00271 1,463.90",Software Maintenance,43604
Wyre Council,http://opendatacommunities.org/doc/district-council/wyre,30/07/2022,Resources,Support Services,135B,Phoenix Software LTD,05/07/2022,RS142538,235.89,0.00,Windows Server Standard Core All Language Licence with Software Assurance Pack 16 1Licences Core Licence - Licence,Software Maintenance,43604
Wyre Council,http://opendatacommunities.org/doc/district-council/wyre,30/07/2022,Resources,Support Services,135B,Phoenix Software LTD,05/07/2022,RS142538,2244.12,0.00,Windows Server Data Centre Core All Language Licence with Software Assurance Pack 2 12Licences CoreLicence - Licence,Software Maintenance,43604
Wyre Council,http://opendatacommunities.org/doc/district-council/wyre,30/07/2022,Resources,Support Services,135B,Phoenix Software LTD,05/07/2022,RS142538,614.79,0.00,Power BI Premium USL Subscription - Per User - Licence 3 204.93,Software Maintenance,43604
Wyre Council,http://opendatacommunities.org/doc/district-council/wyre,30/07/2022,Resources,Support Services,135B,Phoenix Software LTD,05/07/2022,RS142538,894.36,0.00,AzureMonetaryCommitment Shared Server All Language Monthly Subscription Commit 1*Price per Month* - Licence,Software Maintenance,43604
Wyre Council,http://opendatacommunities.org/doc/district-council/wyre,30/07/2022,Resources,Support Services,135B,Phoenix Software LTD,05/07/2022,RS142538,23.07,0.00,System Centre Standard Core All Language Licence with Software Assurance Pack 2 1Licences CoreLicence - Licence,Software Maintenance,43604
Wyre Council,http://opendatacommunities.org/doc/district-council/wyre,30/07/2022,Resources,Support Services,135B,Phoenix Software LTD,05/07/2022,RS142538,6.24,0.00,System Centre Operations Manager Client Management Licence with Software Assurance - 1Volume Licence,Software Maintenance,43604
Wyre Council,http://opendatacommunities.org/doc/district-council/wyre,30/07/2022,Resources,Support Services,135B,Phoenix Software LTD,05/07/2022,RS142538,73.26,0.00,Enterprise Mobility Suite Full Shared Server All Language Subscription 1 Licence Per User - 1Licence,Software Maintenance,43604
Wyre Council,http://opendatacommunities.org/doc/district-council/wyre,30/07/2022,Resources,Support Services,135B,Phoenix Software LTD,05/07/2022,RS142538,398.10,0.00,Power Apps Plan Shared Server All Language Subscriptions 1 Licence Per User - Licence 1,Software Maintenance,43604
Wyre Council,http://opendatacommunities.org/doc/district-council/wyre,30/07/2022,Resources,Support Services,135B,Phoenix Software LTD,05/07/2022,RS142538,83.87,0.00,Power Apps per App Plan Shared Server All Languages Subscription - Licence 1,Software Maintenance,43604
Wyre Council,http://opendatacommunities.org/doc/district-council/wyre,30/07/2022,Resources,Support Services,135B,Phoenix Software LTD,05/07/2022,RS142538,5572.80,0.00,Windows Server Standard Core All Language Licence with Software Assurance Pack 2 Core 12Licences - Licence,Software Maintenance,43604
Wyre Council,http://opendatacommunities.org/doc/district-council/wyre,30/07/2022,Resources,Support Services,135B,Phoenix Software LTD,05/07/2022,RS142538,1404.00,0.00,Meeting Room Premium Shared Server Subscription Per Device - Licence 3 468.00,Software Maintenance,43604
Wyre Council,http://opendatacommunities.org/doc/district-council/wyre,30/07/2022,Resources,Support Services,135B,Phoenix Software LTD,05/07/2022,RS142538,156.38,0.00,Office 365 Plan E3 Shared Server All Language Subscription Licence Per User - Licence 1,Software Maintenance,43604
Wyre Council,http://opendatacommunities.org/doc/district-council/wyre,30/07/2022,Resources,Support Services,135B,Phoenix Software LTD,05/07/2022,RS142538,27.41,0.00,ECAL Bridge Office 365 All Language Subscription Per User - Licence 1,Software Maintenance,43604
Wyre Council,http://opendatacommunities.org/doc/district-council/wyre,30/07/2022,Resources,Support Services,135B,Phoenix Software LTD,19/07/2022,RS142689,-5572.80,0.00,pricing error,Software Maintenance,43604
Wyre Council,http://opendatacommunities.org/doc/district-council/wyre,30/07/2022,Resources,Support Services,135B,NEC Software Solutions UK Limited,27/07/2022,RS142993,5350.00,0.00,"Contract reference number:CAT: 4373Supplier reference number: CRM: 113774NEC Document Management software to be hosted in the Supplier cloudYear One ChargesNEC Document ManagementSoftware                    21,250 on Contract Signature",Software Maintenance,43604
Wyre Council,http://opendatacommunities.org/doc/district-council/wyre,30/07/2022,Resources,Support Services,135B,NEC Software Solutions UK Limited,27/07/2022,RS142990,34500.00,0.00,"Contract reference number:CAT: 4373Supplier reference number: CRM: 113774NEC Document Management software to be hosted in the Supplier cloudYear One ChargesNEC Document ManagementSoftware                    21,250 on Contract Signature",Software Maintenance,43604
Wyre Council,http://opendatacommunities.org/doc/district-council/wyre,30/07/2022,Resources,Support Services,135B,NEC Software Solutions UK Limited,25/07/2022,RS142956,70620.00,0.00,Ref: 423001Renewal 01/09/2022 to 31/08/2023 - NPS Onboarding and Managed Service Revenues & Benefits Business Objects,Software Maintenance,43604
Wyre Council,http://opendatacommunities.org/doc/district-council/wyre,30/07/2022,Resources,Support Services,135B,Grace Governance Solutions LTD,14/07/2022,RS142833,2995.00,0.00,Grace Risk Management Annual Software Licence,Software Maintenance,43604
Wyre Council,http://opendatacommunities.org/doc/district-council/wyre,30/07/2022,People and Places,Planning and Development Servs,132C,EAS Electrical Mechanical,12/07/2022,PE142737,342.29,0.00,Installed christmas decoration at fleetwood market,Special Events,46522
Wyre Council,http://opendatacommunities.org/doc/district-council/wyre,30/07/2022,Resources,Cultural and Related Services,132A,Fylde Coast Holiday Club,20/07/2022,RS142834,265.41,0.00,HAF equipment costs - summer 2022,Special Events,46522
Wyre Council,http://opendatacommunities.org/doc/district-council/wyre,30/07/2022,Resources,Cultural and Related Services,132A,Fylde Coast Holiday Club,20/07/2022,RS142834,595.34,0.00,HAF equipment costs - summer 2022,Special Events,46522
Wyre Council,http://opendatacommunities.org/doc/district-council/wyre,30/07/2022,People and Places,Cultural and Related Services,132A,LINK SECURITY SERVICES NW LTD,13/07/2022,PE142700,3804.00,0.00,For the supply of SIA Licensed staff for the following events and times.  Jubilee Marquee at the Civic Centre. Jubilee Bank Holiday Monday 30th May 6pm  8am x 2 staff - Static guarding event site Tuesday 31st  May 6pm  8am x 2 staff - Static Guarding th,Special Events,46522
Wyre Council,http://opendatacommunities.org/doc/district-council/wyre,30/07/2022,People and Places,Cultural and Related Services,132A,LINK SECURITY SERVICES NW LTD,13/07/2022,PE142700,103.68,0.00,"For the services of 2 x SIA staff at the Beacon Lighting even on the Mount Fleetwood,  on Thursday 2nd June, between 2000hrs and 2230hrs. 129.60 inclusive of VAT",Special Events,46522
Wyre Council,http://opendatacommunities.org/doc/district-council/wyre,30/07/2022,People and Places,Corporate and Democratic Core,131A,LINK SECURITY SERVICES NW LTD,13/07/2022,PE142700,105.00,0.00,For the security of the Civic Centre carpark  for the Freedom parade on Monday 23rd May between 0930hrs and 1330hrs. To act as information points for visitors and car drivers.  2 x staff x 4 hours  103 excluding V.A.T.,Special Events,46522
Wyre Council,http://opendatacommunities.org/doc/district-council/wyre,30/07/2022,People and Places,Cultural and Related Services,132A,SD SSC Limited T/A Sportscool Fylde,13/07/2022,PE142767,475.00,0.00,Equipment costs - HAF summer 2022,Special Events,46522
Wyre Council,http://opendatacommunities.org/doc/district-council/wyre,30/07/2022,People and Places,Cultural and Related Services,132A,SD SSC Limited T/A Sportscool Fylde,13/07/2022,PE142767,430.00,0.00,Equipment costs - HAF summer 2022,Special Events,46522
Wyre Council,http://opendatacommunities.org/doc/district-council/wyre,30/07/2022,People and Places,Support Services,135B,Dr Tree Surgeons,06/07/2022,PE142591,250.00,0.00,Quotation 545 - Off Croasdale Drive1 Crown Lift 3 x Sycamore trees on entrance to green to facilitateaccess for tractor and trailer.Total Net Amount: 250.00VAT @ 20%: 50.00Quote Total: 300.00,Special Maintenance - Trees,28004
Wyre Council,http://opendatacommunities.org/doc/district-council/wyre,30/07/2022,People and Places,Support Services,135B,Dr Tree Surgeons,06/07/2022,PE142590,300.00,0.00,"Quotation 541 1 Emergency  Tree work Poulton Cemetery.3 x men a ended split out branch on the 18/05/22.Tree made safe , material stacked behind hedge to create habitat pile.Removal of lower dead wood on Ash tree over foot path.Total Net Amou",Special Maintenance - Trees,28004
Wyre Council,http://opendatacommunities.org/doc/district-council/wyre,30/07/2022,People and Places,Support Services,135B,Dr Tree Surgeons,13/07/2022,PE142823,80.00,0.00,Quotation 519 Quotation One stump grinding at Hawthorne Park. Total Net Amount: 80.00VAT @ 20%: 16.00Quote Total: 96.00,Special Maintenance - Trees,28004
Wyre Council,http://opendatacommunities.org/doc/district-council/wyre,30/07/2022,People and Places,Support Services,135B,Dr Tree Surgeons,19/07/2022,PE142884,900.00,0.00,"Quotation 29/04/22 Tree work as per R Arrell e-mail and site plan - Preesall Cemetery.Total Value: 900.00Vat(20%): 180.00Total Inc Vat: 1,080.00",Special Maintenance - Trees,28004
Wyre Council,http://opendatacommunities.org/doc/district-council/wyre,30/07/2022,People and Places,Support Services,135B,Dr Tree Surgeons,20/07/2022,PE142895,160.00,0.00,Quotation 569  - Quote Ref: Tower Wood&#8208; rear of 92 West Drive1 To Fell one Elm tree and leave as a  habitat pole. 160.00 160.00Total Net Amount: 160.00VAT @ 20%: 32.00Quote Total: 192.00,Special Maintenance - Trees,28004
Wyre Council,http://opendatacommunities.org/doc/district-council/wyre,30/07/2022,People and Places,Support Services,135B,Dr Tree Surgeons,20/07/2022,PE142894,220.00,0.00,Quotation 570 - 2 Arundel Drive1 To Fell and remove one white beam . 220.00 220.00Total Net Amount: 220.00VAT @ 20%: 44.00Quote Total: 264.00,Special Maintenance - Trees,28004
Wyre Council,http://opendatacommunities.org/doc/district-council/wyre,30/07/2022,People and Places,Support Services,135B,Dr Tree Surgeons,25/07/2022,PE142947,280.00,0.00,Quote Number: 586Quote Ref: Skippool Yacht ClubThe making safe of one broken Beech tree limb at Skippool Yachtclub.Total Net Amount: 280.00VAT @ 20%: 56.00Quote Total: 336.00,Special Maintenance - Trees,28004
Wyre Council,http://opendatacommunities.org/doc/district-council/wyre,30/07/2022,People and Places,Cultural and Related Services,132A,George Hewitt Fabrications,14/07/2022,PE142828,4084.85,0.00,2 X Gates for Boating Lake Ramp � Made from 316 Stainless Box 50 X 50mm and White 10mm base in fill � X 6 80 X 80mm Box Hangers and Catcher post  Materials - 3000.00 + vat Labour - 1084.85 + vat     Total Cost 5650.00 + vat,Special Works,28003
Wyre Council,http://opendatacommunities.org/doc/district-council/wyre,30/07/2022,Resources,Support Services,135B,Bates Office Services Ltd,22/07/2022,RS142943,79.80,0.00,A2 Laminating Pouches 12c20041n,Stationery,42200
Wyre Council,http://opendatacommunities.org/doc/district-council/wyre,30/07/2022,Resources,Support Services,135B,Bates Office Services Ltd,04/07/2022,RS142534,43.74,0.00,QCONNECT SLIDE BINDER/COVER KITS BLK P20,Stationery,42200
Wyre Council,http://opendatacommunities.org/doc/district-council/wyre,30/07/2022,Resources,Support Services,135B,Bates Office Services Ltd,04/07/2022,RS142534,5.82,0.00,CARD A4 205 GSM WHITE PK20 WCA420,Stationery,42200
Wyre Council,http://opendatacommunities.org/doc/district-council/wyre,30/07/2022,Resources,Planning and Development Servs,132C,Bates Office Services Ltd,04/07/2022,RS142521,121.96,0.00,FELLOWES R-KIVE STORAGE BOX 01810,Stationery,42200
Wyre Council,http://opendatacommunities.org/doc/district-council/wyre,30/07/2022,Resources,Planning and Development Servs,132C,Bates Office Services Ltd,04/07/2022,RS142520,121.96,0.00,FELLOWES R-KIVE STORAGE BOX 01810,Stationery,42200
Wyre Council,http://opendatacommunities.org/doc/district-council/wyre,30/07/2022,Resources,Planning and Development Servs,132C,Bates Office Services Ltd,04/07/2022,RS142522,17.16,0.00,Q-CONNECT GREEN DOC WALLET 285G PK50,Stationery,42200
Wyre Council,http://opendatacommunities.org/doc/district-council/wyre,30/07/2022,Resources,Planning and Development Servs,132C,Bates Office Services Ltd,04/07/2022,RS142522,9.45,0.00,SELLOTAPE 24MM X 66M GOLDEN TAPE,Stationery,42200
Wyre Council,http://opendatacommunities.org/doc/district-council/wyre,30/07/2022,People and Places,Support Services,135B,Bates Office Services Ltd,26/07/2022,PE142966,0.90,0.00,A4 CLEAR PUNCHED POCKETS PK100,Stationery,42200
Wyre Council,http://opendatacommunities.org/doc/district-council/wyre,30/07/2022,People and Places,Support Services,135B,Bates Office Services Ltd,26/07/2022,PE142966,7.59,0.00,INITIATIVE LAMG POUCH A4 150 MIC PK100,Stationery,42200
Wyre Council,http://opendatacommunities.org/doc/district-council/wyre,30/07/2022,People and Places,Support Services,135B,Bates Office Services Ltd,26/07/2022,PE142966,5.13,0.00,INITIATIVE C4 WHT WDW 100GSM S/S PK250,Stationery,42200
Wyre Council,http://opendatacommunities.org/doc/district-council/wyre,30/07/2022,People and Places,Support Services,135B,Bates Office Services Ltd,26/07/2022,PE142966,15.20,0.00,KENSINGTON SOLESAVER FOOTREST 56152,Stationery,42200
Wyre Council,http://opendatacommunities.org/doc/district-council/wyre,30/07/2022,People and Places,Support Services,135B,Bates Office Services Ltd,26/07/2022,PE142966,3.69,0.00,INITIATIVE DOCUMENT WALLETS FC AST PK50,Stationery,42200
Wyre Council,http://opendatacommunities.org/doc/district-council/wyre,30/07/2022,People and Places,Support Services,135B,Bates Office Services Ltd,26/07/2022,PE142966,8.70,0.00,CHARCOAL A4 LEVER ARCH 70MM FILES PK10,Stationery,42200
Wyre Council,http://opendatacommunities.org/doc/district-council/wyre,30/07/2022,People and Places,Support Services,135B,Bates Office Services Ltd,26/07/2022,PE142966,18.64,0.00,BANKERS BOX STORAGE BOX GREY PK5,Stationery,42200
Wyre Council,http://opendatacommunities.org/doc/district-council/wyre,30/07/2022,People and Places,Support Services,135B,Bates Office Services Ltd,13/07/2022,PE142783,10.12,0.00,INITIATIVE LAMG POUCH A4 150 MIC PK100,Stationery,42200
Wyre Council,http://opendatacommunities.org/doc/district-council/wyre,30/07/2022,People and Places,Support Services,135B,Bates Office Services Ltd,13/07/2022,PE142783,27.66,0.00,Q-CONNECT A4 LAM POUCHES STICKY-BACK P25,Stationery,42200
Wyre Council,http://opendatacommunities.org/doc/district-council/wyre,30/07/2022,People and Places,Support Services,135B,Bates Office Services Ltd,13/07/2022,PE142783,3.69,0.00,INITIATIVE DOCUMENT WALLETS FC AST PK50,Stationery,42200
Wyre Council,http://opendatacommunities.org/doc/district-council/wyre,30/07/2022,People and Places,Support Services,135B,Bates Office Services Ltd,13/07/2022,PE142783,8.44,0.00,Initiative Env C5 SSeal 90g Wh Wdw 500s,Stationery,42200
Wyre Council,http://opendatacommunities.org/doc/district-council/wyre,30/07/2022,People and Places,Support Services,135B,Bates Office Services Ltd,04/07/2022,PE142535,16.88,0.00,Initiative Env C5 SSeal 90g Wh Wdw 500s,Stationery,42200
Wyre Council,http://opendatacommunities.org/doc/district-council/wyre,30/07/2022,People and Places,Current Assets,130B,Standard Fuel Oils,06/07/2022,PE142582,56231.00,0.00,"Confirmation order for 35003 litres of White diesel @ 160.66 pplDelivered 22/6/2210amDelivery to Wyre Council, Copse Road DepotCopse Road, Fleetwood, FY7 6RP.",Stock - Copse Road Fuel,01836
Wyre Council,http://opendatacommunities.org/doc/district-council/wyre,30/07/2022,Resources,Current Assets,130B,Whistl Uk Limited,12/07/2022,RS142755,544.03,0.00,Annual postage charges 01/04/2022 - 31/03/2022,Stores Purchases,01823
Wyre Council,http://opendatacommunities.org/doc/district-council/wyre,30/07/2022,Resources,Current Assets,130B,Whistl Uk Limited,12/07/2022,RS142755,3.60,0.00,Annual postage charges 01/04/2022 - 31/03/2022,Stores Purchases,01823
Wyre Council,http://opendatacommunities.org/doc/district-council/wyre,30/07/2022,Resources,Current Assets,130B,Whistl Uk Limited,27/07/2022,RS142987,255.89,0.00,Annual postage charges 01/04/2022 - 31/03/2022,Stores Purchases,01823
Wyre Council,http://opendatacommunities.org/doc/district-council/wyre,30/07/2022,Resources,Current Assets,130B,Whistl Uk Limited,04/07/2022,RS142517,480.72,0.00,Annual postage charges 01/04/2022 - 31/03/2022,Stores Purchases,01823
Wyre Council,http://opendatacommunities.org/doc/district-council/wyre,30/07/2022,Resources,Current Assets,130B,Whistl Uk Limited,19/07/2022,RS142873,-129.22,0.00,Annual postage charges 01/04/2022 - 31/03/2022,Stores Purchases,01823
Wyre Council,http://opendatacommunities.org/doc/district-council/wyre,30/07/2022,Resources,Current Assets,130B,Whistl Uk Limited,19/07/2022,RS142873,129.22,0.00,Annual postage charges 01/04/2022 - 31/03/2022,Stores Purchases,01823
Wyre Council,http://opendatacommunities.org/doc/district-council/wyre,30/07/2022,Resources,Current Assets,130B,Whistl Uk Limited,18/07/2022,RS142853,129.22,0.00,Annual postage charges 01/04/2022 - 31/03/2022,Stores Purchases,01823
Wyre Council,http://opendatacommunities.org/doc/district-council/wyre,30/07/2022,Resources,Current Assets,130B,Whistl Uk Limited,12/07/2022,RS142701,353.87,0.00,Annual postage charges 01/04/2022 - 31/03/2022,Stores Purchases,01823
Wyre Council,http://opendatacommunities.org/doc/district-council/wyre,30/07/2022,Resources,Central Services to the Public,131C,Civica UK LTD,21/07/2022,RS142911,105.00,0.00,Electoral Register Basics Course on 1 July 2022 - Online,Technical Training,17010
Wyre Council,http://opendatacommunities.org/doc/district-council/wyre,30/07/2022,People and Places,Environmental Services,132B,Lancaster Training Services LTD,14/07/2022,PE142762,1134.00,0.00,Class C Driver Training Anthony Hopwood,Technical Training,17010
Wyre Council,http://opendatacommunities.org/doc/district-council/wyre,30/07/2022,People and Places,Environmental Services,132B,Lancaster Training Services LTD,14/07/2022,PE142762,155.00,0.00,DSA test fees,Technical Training,17010
Wyre Council,http://opendatacommunities.org/doc/district-council/wyre,30/07/2022,Resources,Support Services,135B,North West Employers,13/07/2022,RS142334,850.00,0.00,Minute Taking Course - 7 July 2022,Technical Training,17010
Wyre Council,http://opendatacommunities.org/doc/district-council/wyre,30/07/2022,Resources,Support Services,135B,MBL (Seminars) LTD,14/07/2022,RS142651,600.00,0.00,MBL Annual Subscription 06/07/22 - 07/07/22,Technical Training,17010
Wyre Council,http://opendatacommunities.org/doc/district-council/wyre,30/07/2022,Resources,Support Services,135B,Civica UK LTD,26/07/2022,RS142975,885.00,0.00,"Systems Admin Training Sessions  Web and Co Admin 31st May 2022 Purchasing Admin 15th June GL,CR and DR admin 21st June",Training - Non HR Controlled,17012
Wyre Council,http://opendatacommunities.org/doc/district-council/wyre,30/07/2022,Resources,Support Services,135B,Zurich Municipal,12/07/2022,RS142608,51814.81,0.00,Annual insurance renewal  Combined Policy - QLA 07H081-0083-00 Effective 30/6/22 to 29/6/23 Premium including IPT,Vehicle Insurance Premiums,35000
Wyre Council,http://opendatacommunities.org/doc/district-council/wyre,30/07/2022,People and Places,Environmental Services,132B,United Utilities Standpipes,01/07/2022,PE142375,46.90,0.00,Hire of Standpipes  C11001120 C15108844 Street Cleansing  Contract SP11/2265,Water Charges-Metered,24000
